Workbook

Sheet JULIO
B1: LISTADO CONTRATACION MES DE JULIO DE 2020
A2: NO | B2: CEDULA | C2: NOMBRES APELLIDOS CONTRATISTA | D2: ops #año | E2: OBJETO DEL CONTRATO | F2: FECHA INICIO | G2: FECHA TERMINACION | H2: VALOR MENSUAL | I2: VALOR TOTAL | J2: CDP | K2: RP | L2: SUPERVISOR | M2: CARGO | N2: FECHA SECOP | O2: LINK SECOP
A3: 1 | B3: 32726703 | C3: MARILYN ESTHER PEREZ LIÑAN | D3: 2669-2020 | E3: AUXILIAR DE ENFERMERIA URGENCIAS | F3: 01 deJulio de 2020 | G3: 31 de Julio de 2020 | H3: 1653600 | I3: =+H3*1 -> 1653600 | J3: 3263 | K3: 4253 | L3: SERGIO BOVEA MARIN | M3: COORD CENTRO DE SALUD | N3: 2020-07-17 | O3: https://www.contratos.gov.co/consultas/detalleProceso.do?numConstancia=20-4-10932901
A4: =+A3+1 -> 2 | B4: 1129532724 | C4: MICHELLY SANDOVAL ACUÑA | D4: 2670-2020 | E4: AUDITOR MEDICO - EPIDEMIOLOGA COORDINACION- EMERGENCIA COVIC 19 | F4: 01 deJulio de 2020 | G4: 31 de Julio de 2020 | H4: 6044000 | I4: 6044000 | J4: 3272 | K4: 4254 | L4: BETTY PERTUZ | M4: SUBGERENTE CIENTIFICO | N4: 2020-07-17 | O4: https://www.contratos.gov.co/consultas/detalleProceso.do?numConstancia=20-4-10932921
A5: 3 | B5: 32870174 | C5: SIRLEY PAOLA PEREZ CARMONA | D5: 2671-2020 | E5: AUDITOR DE CALIDAD Y SERVICIOS DE SALUD | F5: 01 deJulio de 2020 | G5: 31 de Julio de 2020 | H5: 5800000 | I5: 5800000 | J5: 3273 | K5: 4255 | L5: BETTY PERTUZ | M5: SUBGERENTE CIENTIFICO | N5: 2020-07-17 | O5: https://www.contratos.gov.co/consultas/detalleProceso.do?numConstancia=20-4-10932926
A6: 4 | B6: 1140846298 | C6: LENIN ALVAREZ PINEDA | D6: 2672-2020 | E6: AUDITOR DE SISTEMAS Y RESOLUCION 4505 | F6: 01 deJulio de 2020 | G6: 31 de Julio de 2020 | H6: 3000000 | I6: 3000000 | J6: 3274 | K6: 4256 | L6: NILSA ARIZA MARQUEZ | M6: COORDINADOR PYP | N6: 2020-07-17 | O6: https://www.contratos.gov.co/consultas/detalleProceso.do?numConstancia=20-4-10932935
A7: 5 | B7: 22736159 | C7: ARACELLY HERNANDEZ GARCIA | D7: 2673-2020 | E7: AUXILIAR ADMINISTRATIVO TIC Y SISTEMA DE INFORMACION | F7: 01 deJulio de 2020 | G7: 31 de Julio de 2020 | H7: 2500000 | I7: 2500000 | J7: 3275 | K7: 4257 | L7: ZULLY ROMERO | M7: COORDINADOR TIC | N7: 2020-07-17 | O7: https://www.contratos.gov.co/consultas/detalleProceso.do?numConstancia=20-4-10932942
A8: 6 | B8: 1042416953 | C8: GABRIEL JOSE MONTIEL CERVANTES | D8: 2674-2020 | E8: INGENIERO DE REDES Y HARDWARE | F8: 01 deJulio de 2020 | G8: 31 de Julio de 2020 | H8: 3000000 | I8: 3000000 | J8: 3276 | K8: 4258 | L8: ZULLY ROMERO | M8: COORDINADOR TIC | N8: 2020-07-17 | O8: https://www.contratos.gov.co/consultas/detalleProceso.do?numConstancia=20-4-10932948
A9: 7 | B9: 1043121395 | C9: SHEYLA DEL CARMEN ESTRADA ARIZA | D9: 2675-2020 | E9: TECNICO DE SISTEMAS | F9: 01 deJulio de 2020 | G9: 31 de Julio de 2020 | H9: 1270000 | I9: 1270000 | J9: 3277 | K9: 4259 | L9: ZULLY ROMERO | M9: COORDINADOR TIC | N9: 2020-07-17 | O9: https://www.contratos.gov.co/consultas/detalleProceso.do?numConstancia=20-4-10932958
A10: 8 | B10: 8762035 | C10: CESAR AUGUSTO MERIÑO ESCORCIA | D10: 2676-2020 | E10: ORIENTADOR | F10: 01 deJulio de 2020 | G10: 31 de Julio de 2020 | H10: 1270000 | I10: 1270000 | J10: 3278 | K10: 4260 | L10: SANDRA SANMARTIN | M10: SUBGERENTE ADMINISTRATIVO | N10: 2020-07-17 | O10: https://www.contratos.gov.co/consultas/detalleProceso.do?numConstancia=20-4-10932967
A11: 9 | B11: 1140814033 | C11: STEFANY RINCON TORRES | D11: 2677-2020 | E11: ASISTENTE ADMINISTRATIVO- COORD EMERGENCIA COVIC 19 | F11: 01 deJulio de 2020 | G11: 31 de Julio de 2020 | H11: 4000000 | I11: 4000000 | J11: 3279 | K11: 4261 | L11: BETTY PERTUZ | M11: SUBGERENTE CIENTIFICO | N11: 2020-07-17 | O11: https://www.contratos.gov.co/consultas/detalleProceso.do?numConstancia=20-4-10932975
A12: 10 | B12: 1140874429 | C12: ALBERTO DE LA OSSA DE AVILA | D12: 2678-2020 | E12: PROFESIONAL PRESUPUESTO | F12: 01 deJulio de 2020 | G12: 31 de Julio de 2020 | H12: 3000000 | I12: 3000000 | J12: 3280 | K12: 4262 | L12: JORGE OLMOS NAVARRO | M12: DIRECTOR FINANCIERO | N12: 2020-07-17 | O12: https://www.contratos.gov.co/consultas/detalleProceso.do?numConstancia=20-4-10932984
A13: 11 | B13: 22549719 | C13: CARMEN MELINA BOLAÑO COTES | D13: 2679-2020 | E13: AUXILIAR ADMINISTRATIVO ESTADISTICA | F13: 01 deJulio de 2020 | G13: 31 de Julio de 2020 | H13: 2500000 | I13: 2500000 | J13: 3281 | K13: 4263 | L13: GENARO GUTIERREZ DE PIÑERES | M13: JEFE DE ESTADISTICA | N13: 2020-07-17 | O13: https://www.contratos.gov.co/consultas/detalleProceso.do?numConstancia=20-4-10932989
A14: 12 | B14: 1001798325 | C14: CINDY MILENA SARMIENTO MERIÑO | D14: 2680-2020 | E14: ESPECIALISTA TALENTO HUMANO | F14: 01 deJulio de 2020 | G14: 31 de Julio de 2020 | H14: 4000000 | I14: 4000000 | J14: 3282 | K14: 4264 | L14: FABIAN COLPAS OROZCO | M14: JEFE TALENTO HUMANO | N14: 2020-07-17 | O14: https://www.contratos.gov.co/consultas/detalleProceso.do?numConstancia=20-4-10932995
A15: 13 | B15: 32769708 | C15: CLAUDIA ARENAS ALVAREZ | D15: 2681-2020 | E15: APOYO GESTION CONTROL INTERNO | F15: 01 deJulio de 2020 | G15: 31 de Julio de 2020 | H15: 3500000 | I15: 3500000 | J15: 3283 | K15: 4265 | L15: SANDRA SANMARTIN | M15: SUBGERENTE ADMINISTRATIVO | N15: 2020-07-17 | O15: https://www.contratos.gov.co/consultas/detalleProceso.do?numConstancia=20-4-10933001
A16: 14 | B16: 1043611198 | C16: CRISTIAN JESUS RODRIGUEZ QUIROZ | D16: 2682-2020 | E16: PROFESIONAL CONTADURIA | F16: 01 deJulio de 2020 | G16: 31 de Julio de 2020 | H16: 3000000 | I16: 3000000 | J16: 3284 | K16: 4266 | L16: JORGE OLMOS NAVARRO | M16: DIRECTOR FINANCIERO | N16: 2020-07-17 | O16: https://www.contratos.gov.co/consultas/detalleProceso.do?numConstancia=20-4-10933013
A17: 15 | B17: 22704983 | C17: EGUIS ODILA ROLONG LAGUNA | D17: 2683-2020 | E17: ABOGADO TALENTO HUMANO | F17: 01 deJulio de 2020 | G17: 31 de Julio de 2020 | H17: 5000000 | I17: 5000000 | J17: 3285 | K17: 4267 | L17: FABIAN COLPAS OROZCO | M17: JEFE TALENTO HUMANO | N17: 2020-07-17 | O17: https://www.contratos.gov.co/consultas/detalleProceso.do?numConstancia=20-4-10933018
A18: 16 | B18: 32866006 | C18: ERIKA MARIA ASCENCIO MARQUEZ | D18: 2684-2020 | E18: PROFESIONAL CONTRATACION Y SISTEMAS DE INFORMACION TALENTO HUMANO | F18: 01 deJulio de 2020 | G18: 31 de Julio de 2020 | H18: 4000000 | I18: 4000000 | J18: 3286 | K18: 4268 | L18: FABIAN COLPAS OROZCO | M18: JEFE TALENTO HUMANO | N18: 2020-07-17 | O18: https://www.contratos.gov.co/consultas/detalleProceso.do?numConstancia=20-4-10933026
A19: 17 | B19: 8495176 | C19: JAIME ALBERTO ALVAREZ NORIEGA | D19: 2685-2020 | E19: INGENIERO AMBIENTAL | F19: 01 deJulio de 2020 | G19: 31 de Julio de 2020 | H19: 3500000 | I19: 3500000 | J19: 3287 | K19: 4269 | L19: SANDRA SANMARTIN | M19: SUBGERENTE ADMINISTRATIVO | N19: 2020-07-17 | O19: https://www.contratos.gov.co/consultas/detalleProceso.do?numConstancia=20-4-10933039
A20: 18 | B20: 1010137665 | C20: KAROLINE JUDITH MORENO VARELO | D20: 2686-2020 | E20: ASISTENTE ADMINISTRATIVO PROMOCION Y PREVENCION. | F20: 01 deJulio de 2020 | G20: 31 de Julio de 2020 | H20: 1500000 | I20: 1500000 | J20: 3288 | K20: 4270 | L20: NILSA ARIZA MARQUEZ | M20: COORDINADOR PYP | N20: 2020-07-17 | O20: https://www.contratos.gov.co/consultas/detalleProceso.do?numConstancia=20-4-10933049
A21: 19 | B21: 72053529 | C21: LEINER DARIO MEDINA HERRERA | D21: 2687-2020 | E21: CONTROL INTERNO | F21: 01 deJulio de 2020 | G21: 31 de Julio de 2020 | H21: 3000000 | I21: 3000000 | J21: 3289 | K21: 4271 | L21: SANDRA SANMARTIN | M21: SUBGERENTE ADMINISTRATIVO | N21: 2020-07-17 | O21: https://www.contratos.gov.co/consultas/detalleProceso.do?numConstancia=20-4-10933054
A22: 20 | B22: 8571868 | C22: ERINSON RAFAEL GUZMAN DE LA HOZ | D22: 2688-2020 | E22: PROFESIONAL TALENTO HUMANO | F22: 01 deJulio de 2020 | G22: 31 de Julio de 2020 | H22: 3000000 | I22: 3000000 | J22: 3290 | K22: 4272 | L22: FABIAN COLPAS OROZCO | M22: JEFE TALENTO HUMANO | N22: 2020-07-17 | O22: https://www.contratos.gov.co/consultas/detalleProceso.do?numConstancia=20-4-10933061
A23: 21 | B23: 44205287 | C23: MARTHA KATERINE MEJIA FRUTO | D23: 2689-2020 | E23: AUXILIAR ADMINISTRATIVO RECEPCION | F23: 01 deJulio de 2020 | G23: 31 de Julio de 2020 | H23: 1900000 | I23: 1900000 | J23: 3291 | K23: 4273 | L23: SANDRA SANMARTIN | M23: SUBGERENTE ADMINISTRATIVO | N23: 2020-07-17 | O23: https://www.contratos.gov.co/consultas/detalleProceso.do?numConstancia=20-4-10933074
A24: 22 | B24: 1043876764 | C24: MELANI ISABEL PERTUZ HERRERA | D24: 2690-2020 | E24: AUXILIAR ADMINISTRATIVO - SUBGERENCIA ADMINISTRATIVA | F24: 01 deJulio de 2020 | G24: 31 de Julio de 2020 | H24: 2200000 | I24: 2200000 | J24: 3292 | K24: 4274 | L24: SANDRA SANMARTIN | M24: SUBGERENTE ADMINISTRATIVO | N24: 2020-07-17 | O24: https://www.contratos.gov.co/consultas/detalleProceso.do?numConstancia=20-4-10933081
A25: 23 | B25: 72268005 | C25: MILTON SOLARTE RODRIGUEZ | D25: 2691-2020 | E25: APOYO EN ANALISIS Y DESARROLLO DE INFORMACION EN FACTURACION CENTRAL (RIPS) | F25: 01 deJulio de 2020 | G25: 31 de Julio de 2020 | H25: 3000000 | I25: 3000000 | J25: 3293 | K25: 4275 | L25: SANDRA SANMARTIN | M25: SUBGERENTE ADMINISTRATIVO | N25: 2020-07-17 | O25: https://www.contratos.gov.co/consultas/detalleProceso.do?numConstancia=20-4-10933084
A26: 24 | B26: 55239101 | C26: NATALI ANDREA NIEBLES JURADO | D26: 2692-2020 | E26: AUDITOR DE CALIDAD (LIDER DE UNIDAD) | F26: 01 deJulio de 2020 | G26: 31 de Julio de 2020 | H26: 5800000 | I26: 5800000 | J26: 3294 | K26: 4276 | L26: BETTY PERTUZ | M26: SUBGERENTE CIENTIFICO | N26: 2020-07-17 | O26: https://www.contratos.gov.co/consultas/detalleProceso.do?numConstancia=20-4-10933099
A27: 25 | B27: 1010179685 | C27: NAYIVI OSPINA ARROYAVE | D27: 2693-2020 | E27: PROFESIONAL SISTEMA DE GESTION Y SEGURIDAD EN EL TRABAJO | F27: 01 deJulio de 2020 | G27: 31 de Julio de 2020 | H27: 3500000 | I27: 3500000 | J27: 3295 | K27: 4277 | L27: FABIAN COLPAS OROZCO | M27: JEFE TALENTO HUMANO | N27: 2020-07-17 | O27: https://www.contratos.gov.co/consultas/detalleProceso.do?numConstancia=20-4-10933110
A28: 26 | B28: 8603175 | C28: NILSON ORTEGA JIMENEZ | D28: 2694-2020 | E28: AUXILIAR ADMINISTRATIVO TALENTO HUMANO | F28: 01 deJulio de 2020 | G28: 31 de Julio de 2020 | H28: 2000000 | I28: 2000000 | J28: 3296 | K28: 4278 | L28: FABIAN COLPAS OROZCO | M28: JEFE TALENTO HUMANO | N28: 2020-07-17 | O28: https://www.contratos.gov.co/consultas/detalleProceso.do?numConstancia=20-4-10933118
A29: 27 | B29: 1047340446 | C29: OSCAR MAURICIO MARENCO ROMERO | D29: 2695-2020 | E29: ASISTENTE ADMINISTRATIVO | F29: 01 deJulio de 2020 | G29: 31 de Julio de 2020 | H29: 1800000 | I29: 1800000 | J29: 3297 | K29: 4279 | L29: BETTY PERTUZ | M29: SUBGERENTE CIENTIFICO | N29: 2020-07-17 | O29: https://www.contratos.gov.co/consultas/detalleProceso.do?numConstancia=20-4-10933127
A30: 28 | B30: 22446590 | C30: ROSALBA CERPA MIRANDA | D30: 2696-2020 | E30: AUXILIAR ADMINISTRATIVO - SUBGERENCIA CIENTIFICA | F30: 01 deJulio de 2020 | G30: 31 de Julio de 2020 | H30: 1900000 | I30: 1900000 | J30: 3298 | K30: 4280 | L30: BETTY PERTUZ | M30: SUBGERENTE CIENTIFICO | N30: 2020-07-17 | O30: https://www.contratos.gov.co/consultas/detalleProceso.do?numConstancia=20-4-10933135
A31: 29 | B31: 1140818354 | C31: SAEN DAVID TAJAN NIEBLES | D31: 2697-2020 | E31: AUXILIAR ADMINISTRATIVO DE SISTEMAS DE INFORMACION EN PROMOCION Y PREVENCION | F31: 01 deJulio de 2020 | G31: 31 de Julio de 2020 | H31: 2000000 | I31: 2000000 | J31: 3299 | K31: 4281 | L31: NILSA ARIZA MARQUEZ | M31: COORDINADOR PYP | N31: 2020-07-17 | O31: https://www.contratos.gov.co/consultas/detalleProceso.do?numConstancia=20-4-10933141
A32: 30 | B32: 57105527 | C32: ZOILA PATRICIA PABON HERNANDEZ | D32: 2698-2020 | E32: ASISTENTE COORDINACIÓN MÉDICA | F32: 01 deJulio de 2020 | G32: 31 de Julio de 2020 | H32: 3000000 | I32: 3000000 | J32: 3300 | K32: 4282 | L32: BETTY PERTUZ | M32: SUBGERENTE CIENTIFICO | N32: 2020-07-17 | O32: https://www.contratos.gov.co/consultas/detalleProceso.do?numConstancia=20-4-10933151
A33: 31 | B33: 32825462 | C33: ANAIS DE JESUS RODRIGUEZ DE LAS AGUAS | D33: 2699-2020 | E33: PERSONAL LIMPIEZA Y ASEO | F33: 01 deJulio de 2020 | G33: 31 de Julio de 2020 | H33: 1215000 | I33: 1215000 | J33: 3301 | K33: 4283 | L33: JAIME ALVAREZ NORIEGA | M33: INGENIERO AMBIENTAL | N33: 2020-07-17 | O33: https://www.contratos.gov.co/consultas/detalleProceso.do?numConstancia=20-4-10933162
A34: 32 | B34: 1041898122 | C34: MELIZA MORALES PALLARES | D34: 2700-2020 | E34: ASISTETE ADMINISTRATIVO | F34: 01 deJulio de 2020 | G34: 31 de Julio de 2020 | H34: 2000000 | I34: 2000000 | J34: 3302 | K34: 4284 | L34: SANDRA SANMARTIN | M34: SUBGERENTE ADMINISTRATIVO | N34: 2020-07-17 | O34: https://www.contratos.gov.co/consultas/detalleProceso.do?numConstancia=20-4-10933170
A35: 33 | B35: 1042439853 | C35: KERVY DIYAN JINETTE BARRIOS | D35: 2701-2020 | E35: AUXILIAR ADMINISTRATIVO RESOLUCIÓN 2463 | F35: 01 deJulio de 2020 | G35: 31 de Julio de 2020 | H35: 1900000 | I35: 1900000 | J35: 3303 | K35: 4285 | L35: BETTY PERTUZ | M35: SUBGERENTE CIENTIFICO | N35: 2020-07-17 | O35: https://www.contratos.gov.co/consultas/detalleProceso.do?numConstancia=20-4-10933176
A36: 34 | B36: 1045732710 | C36: VICTOR JOSE AGUILAR CRUZADO | D36: 2702-2020 | E36: AUXILIAR ADMINISTRATIVO- CONTRATACION BIENES Y SERVICIOS | F36: 01 deJulio de 2020 | G36: 31 de Julio de 2020 | H36: 4000000 | I36: 4000000 | J36: 3304 | K36: 4286 | L36: ORNELLA FIORENTINO | M36: JEFE JURIDICA | N36: 2020-07-17 | O36: https://www.contratos.gov.co/consultas/detalleProceso.do?numConstancia=20-4-10933182
A37: 35 | B37: 8776312 | C37: JORGE RIVERA MEZA | D37: 2703-2020 | E37: AUXILIAR RECURSOS FISICOS | F37: 01 deJulio de 2020 | G37: 31 de Julio de 2020 | H37: 1900000 | I37: 1900000 | J37: 3305 | K37: 4287 | L37: SANDRA SANMARTIN | M37: SUBGERENTE ADMINISTRATIVO | N37: 2020-07-17 | O37: https://www.contratos.gov.co/consultas/detalleProceso.do?numConstancia=20-4-10933189
A38: 36 | B38: 1042971531 | C38: JULIETH PAOLA FIGUEROA ZAMBRANO | D38: 2704-2020 | E38: AUXILIAR ADMINISTRATIVO CONTABLE | F38: 01 deJulio de 2020 | G38: 31 de Julio de 2020 | H38: 2500000 | I38: 2500000 | J38: 3306 | K38: 4288 | L38: JORGE OLMOS NAVARRO | M38: DIRECTOR FINANCIERO | N38: 2020-07-17 | O38: https://www.contratos.gov.co/consultas/detalleProceso.do?numConstancia=20-4-10933197
A39: 37 | B39: 1042447104 | C39: IVOR ANDRES SANJUAN PEREZ | D39: 2705-2020 | E39: AUXILIAR RECURSOS FISICOS | F39: 01 deJulio de 2020 | G39: 31 de Julio de 2020 | H39: 1900000 | I39: 1900000 | J39: 3307 | K39: 4289 | L39: SANDRA SANMARTIN | M39: SUBGERENTE ADMINISTRATIVO | N39: 2020-07-17 | O39: https://www.contratos.gov.co/consultas/detalleProceso.do?numConstancia=20-4-10933213
A40: 38 | B40: 32607428 | C40: TEMILDA MARIA PERTUZ PEREZ | D40: 2706-2020 | E40: AUDITOR DE CALIDAD Y SERVICIOS DE SALUD | F40: 01 deJulio de 2020 | G40: 31 de Julio de 2020 | H40: 3180000 | I40: 3180000 | J40: 3308 | K40: 4290 | L40: BETTY PERTUZ | M40: SUBGERENTE CIENTIFICO | N40: 2020-07-17 | O40: https://www.contratos.gov.co/consultas/detalleProceso.do?numConstancia=20-4-10933223
A41: 39 | B41: 1045721126 | C41: MARYURIS JOANNA GALVAN NAVARRO | D41: 2707-2020 | E41: LIDER LABORATORIO | F41: 01 deJulio de 2020 | G41: 31 de Julio de 2020 | H41: 5000000 | I41: 5000000 | J41: 3309 | K41: 4291 | L41: BETTY PERTUZ | M41: SUBGERENTE CIENTIFICO | N41: 2020-07-17 | O41: https://www.contratos.gov.co/consultas/detalleProceso.do?numConstancia=20-4-10933231
A42: 40 | B42: 1140847982 | C42: LEIDY DANIELA WILSON PEZZOTI | D42: 2708-2020 | E42: AUXILIAR ADMINISTRATIVO VENTANILLA UNICA | F42: 01 deJulio de 2020 | G42: 31 de Julio de 2020 | H42: 1900000 | I42: 1900000 | J42: 3310 | K42: 4292 | L42: SANDRA SANMARTIN | M42: SUBGERENTE ADMINISTRATIVO | N42: 2020-07-17 | O42: https://www.contratos.gov.co/consultas/detalleProceso.do?numConstancia=20-4-10933236
A43: 41 | B43: 22804794 | C43: KATHERINE GUERRERO SEPULVEDA | D43: 2709-2020 | E43: ABOGADO EXTERNO | F43: 01 deJulio de 2020 | G43: 31 de Julio de 2020 | H43: 5800000 | I43: 5800000 | J43: 3311 | K43: 4293 | L43: ORNELLA FIORENTINO | M43: JEFE JURIDICA | N43: 2020-07-17 | O43: https://www.contratos.gov.co/consultas/detalleProceso.do?numConstancia=20-4-10933239
A44: 42 | B44: 22504159 | C44: FLOR MILENA GOICOCHEA OROZCO | D44: 2710-2020 | E44: AUXILIAR FACTURACION CENTRAL | F44: 01 deJulio de 2020 | G44: 31 de Julio de 2020 | H44: 2000000 | I44: 2000000 | J44: 3312 | K44: 4294 | L44: SANDRA SANMARTIN | M44: SUBGERENTE ADMINISTRATIVO | N44: 2020-07-17 | O44: https://www.contratos.gov.co/consultas/detalleProceso.do?numConstancia=20-4-10933248
A45: 43 | B45: 72250386 | C45: RONALD EMIL PADILLA ACUÑA | D45: 2711-2020 | E45: ABOGADO | F45: 01 deJulio de 2020 | G45: 31 de Julio de 2020 | H45: 5000000 | I45: 5000000 | J45: 3313 | K45: 4295 | L45: ORNELLA FIORENTINO | M45: JEFE JURIDICA | N45: 2020-07-17 | O45: https://www.contratos.gov.co/consultas/detalleProceso.do?numConstancia=20-4-10933255
A46: 44 | B46: 32848040 | C46: LEDIS MARIA MOLINA OQUENDO | D46: 2712-2020 | E46: ABOGADO CONTRATACION | F46: 01 deJulio de 2020 | G46: 31 de Julio de 2020 | H46: 5000000 | I46: 5000000 | J46: 3314 | K46: 4296 | L46: ORNELLA FIORENTINO | M46: JEFE JURIDICA | N46: 2020-07-17 | O46: https://www.contratos.gov.co/consultas/detalleProceso.do?numConstancia=20-4-10933260
A47: 45 | B47: 1045166274 | C47: ALBA MARINA RODRIGUEZ YANCE | D47: 2713-2020 | E47: ASESORA SALUD PUBLICA EN LA SUBGERENCIA CIENTIFICA | F47: 01 deJulio de 2020 | G47: 31 de Julio de 2020 | H47: 5800000 | I47: 5800000 | J47: 3315 | K47: 4297 | L47: JUAN ESTEBAN SANCHEZ PAEZ | M47: GERENTE | N47: 2020-07-17 | O47: https://www.contratos.gov.co/consultas/detalleProceso.do?numConstancia=20-4-10933262
A48: 46 | B48: 44190767 | C48: LUCIBELL ALVAREZ NAVARRO | D48: 2714-2020 | E48: ASESORA SUBGERENCIA CIENTIFICA | F48: 01 deJulio de 2020 | G48: 31 de Julio de 2020 | H48: 5800000 | I48: 5800000 | J48: 3316 | K48: 4298 | L48: JUAN ESTEBAN SANCHEZ PAEZ | M48: GERENTE | N48: 2020-07-17 | O48: https://www.contratos.gov.co/consultas/detalleProceso.do?numConstancia=20-4-10933269
A49: 47 | B49: 5055447 | C49: CARLOS ALBERTO CARBONELL ALVAREZ | D49: 2715-2020 | E49: AUDITOR DE CUENTAS MEDICAS | F49: 01 deJulio de 2020 | G49: 31 de Julio de 2020 | H49: 5500000 | I49: 5500000 | J49: 3317 | K49: 4299 | L49: BETTY PERTUZ | M49: SUBGERENTE CIENTIFICO | N49: 2020-07-17 | O49: https://www.contratos.gov.co/consultas/detalleProceso.do?numConstancia=20-4-10933282
A50: 48 | B50: 1045698343 | C50: JOSE FRANCISCO INFANZON CASTRO | D50: 2716-2020 | E50: INGENERIO MECANICO- RECURSOS FISICOS | F50: 01 deJulio de 2020 | G50: 31 de Julio de 2020 | H50: 5800000 | I50: 5800000 | J50: 3318 | K50: 4300 | L50: SANDRA SANMARTIN | M50: SUBGERENTE ADMINISTRATIVO | N50: 2020-07-17 | O50: https://www.contratos.gov.co/consultas/detalleProceso.do?numConstancia=20-4-10933300
A51: 49 | B51: 40981378 | C51: LIDYS CASTILLO TOVAR | D51: 2717-2020 | E51: PROFESIONAL OFICINA PAGADURIA | F51: 01 deJulio de 2020 | G51: 31 de Julio de 2020 | H51: 4000000 | I51: 4000000 | J51: 3319 | K51: 4301 | L51: LUIS DE MOYA | M51: TESORERO | N51: 2020-07-17 | O51: https://www.contratos.gov.co/consultas/detalleProceso.do?numConstancia=20-4-10933315
A52: 50 | B52: 32651445 | C52: MARTIZA SARMIENTO SANTOS | D52: 2718-2020 | E52: ASESOR DE PLANEACION ESTRATÉGICA Y SISTEMAS DE GESTIÓN CALIDAD /AMBIENTE/SST | F52: 01 deJulio de 2020 | G52: 31 de Julio de 2020 | H52: 5800000 | I52: 5800000 | J52: 3320 | K52: 4302 | L52: JUAN ESTEBAN SANCHEZ PAEZ | M52: GERENTE | N52: 2020-07-17 | O52: https://www.contratos.gov.co/consultas/detalleProceso.do?numConstancia=20-4-10933327
A53: 51 | B53: 32863895 | C53: LUZ ELENA MARRIAGA MONTERO | D53: 2719-2020 | E53: PROFESIONAL PLANEACION | F53: 01 deJulio de 2020 | G53: 31 de Julio de 2020 | H53: 4000000 | I53: 4000000 | J53: 3321 | K53: 4303 | L53: BETTY PERTUZ | M53: SUBGERENTE CIENTIFICO | N53: 2020-07-17 | O53: https://www.contratos.gov.co/consultas/detalleProceso.do?numConstancia=20-4-10933340
A54: 52 | B54: 72314953 | C54: LEONEL DANIEL SILVA TAPIAS | D54: 2720-2020 | E54: REVISOR FISCAL | F54: 01 deJulio de 2020 | G54: 31 de Julio de 2020 | H54: 8255982 | I54: 8255982 | J54: 3322 | K54: 4304 | L54: JUAN ESTEBAN SANCHEZ PAEZ | M54: GERENTE | N54: 2020-07-17 | O54: https://www.contratos.gov.co/consultas/detalleProceso.do?numConstancia=20-4-10933351
A55: 53 | B55: 73188364 | C55: JORGE MAURICIO MONTOYA OCHOA | D55: 2721-2020 | E55: AUXILIAR RECURSOS FISICOS | F55: 01 deJulio de 2020 | G55: 31 de Julio de 2020 | H55: 1900000 | I55: 1900000 | J55: 3323 | K55: 4305 | L55: SANDRA SANMARTIN | M55: SUBGERENTE ADMINISTRATIVO | N55: 2020-07-17 | O55: https://www.contratos.gov.co/consultas/detalleProceso.do?numConstancia=20-4-10933358
A56: 54 | B56: 1042997169 | C56: CINDY PAOLA CERA MENDOZA | D56: 2722-2020 | E56: PROFESIONAL PRESUPUESTO | F56: 01 deJulio de 2020 | G56: 31 de Julio de 2020 | H56: 3000000 | I56: 3000000 | J56: 3324 | K56: 4306 | L56: JORGE OLMOS NAVARRO | M56: DIRECTOR FINANCIERO | N56: 2020-07-17 | O56: https://www.contratos.gov.co/consultas/detalleProceso.do?numConstancia=20-4-10933366
A57: 55 | B57: 52618443 | C57: NATALIA ALONSO CARVAJAL | D57: 2723-2020 | E57: ASESOR GERENCIA | F57: 01 deJulio de 2020 | G57: 31 de Julio de 2020 | H57: 5800000 | I57: 5800000 | J57: 3325 | K57: 4307 | L57: JUAN ESTEBAN SANCHEZ PAEZ | M57: GERENTE | N57: 2020-07-17 | O57: https://www.contratos.gov.co/consultas/detalleProceso.do?numConstancia=20-4-10933371
A58: 56 | B58: 45757809 | C58: MILADIS MARINA MARTINEZ MEDINA | D58: 2724-2020 | E58: LIDER SIAU | F58: 01 deJulio de 2020 | G58: 31 de Julio de 2020 | H58: 3000000 | I58: 3000000 | J58: 3326 | K58: 4308 | L58: BETTY PERTUZ | M58: SUBGERENTE CIENTIFICO | N58: 2020-07-17 | O58: https://www.contratos.gov.co/consultas/detalleProceso.do?numConstancia=20-4-10933374
A59: 57 | B59: 1140871897 | C59: JESICA FERNANDA DE CASTRO MANTILLA | D59: 2725-2020 | E59: INGENIERA QUIMICA | F59: 01 deJulio de 2020 | G59: 31 de Julio de 2020 | H59: 4000000 | I59: 4000000 | J59: 3327 | K59: 4309 | L59: BETTY PERTUZ | M59: SUBGERENTE CIENTIFICO | N59: 2020-07-17 | O59: https://www.contratos.gov.co/consultas/detalleProceso.do?numConstancia=20-4-10933382
A60: 58 | B60: 1042421404 | C60: MARIAM DEL CARMEN CANTILLO MONTERO | D60: 2726-2020 | E60: AUDITOR DE CALIDAD Y SERVICIOS DE SALUD | F60: 01 deJulio de 2020 | G60: 31 de Julio de 2020 | H60: 4000000 | I60: 4000000 | J60: 3328 | K60: 4310 | L60: BETTY PERTUZ | M60: SUBGERENTE CIENTIFICO | N60: 2020-07-17 | O60: https://www.contratos.gov.co/consultas/detalleProceso.do?numConstancia=20-4-10933388
A61: 59 | B61: 32852247 | C61: NORELLYS PAOLA MACHACON PRIETO | D61: 2727-2020 | E61: APOYO SISTEMA DE GESTION | F61: 01 deJulio de 2020 | G61: 31 de Julio de 2020 | H61: 4000000 | I61: 4000000 | J61: 3329 | K61: 4311 | L61: BETTY PERTUZ | M61: SUBGERENTE CIENTIFICO | N61: 2020-07-17 | O61: https://www.contratos.gov.co/consultas/detalleProceso.do?numConstancia=20-4-10933394
A62: 60 | B62: 8745568 | C62: LUIS ENRIQUE PEREA VASQUEZ | D62: 2728-2020 | E62: AUDITOR DE CUENTAS MEDICAS | F62: 01 deJulio de 2020 | G62: 31 de Julio de 2020 | H62: 4500000 | I62: 4500000 | J62: 3330 | K62: 4312 | L62: BETTY PERTUZ | M62: SUBGERENTE CIENTIFICO | N62: 2020-07-17 | O62: https://www.contratos.gov.co/consultas/detalleProceso.do?numConstancia=20-4-10933404
A63: 61 | B63: 72228319 | C63: BLADIMIR ALEXANDER SARMIENTO QUIÑONES | D63: 2729-2020 | E63: TECNICO EN SISTEMAS Y ELECTRONICO | F63: 01 deJulio de 2020 | G63: 31 de Julio de 2020 | H63: 1900000 | I63: 1900000 | J63: 3331 | K63: 4313 | L63: ZULLY ROMERO | M63: COORDINADOR TIC | N63: 2020-07-17 | O63: https://www.contratos.gov.co/consultas/detalleProceso.do?numConstancia=20-4-10933412
A64: 62 | B64: 1042424161 | C64: YENSY ANGELINA ESCALANTE FERRER | D64: 2730-2020 | E64: AUXILIAR ADMINISTRATIVO CONTABLE | F64: 01 deJulio de 2020 | G64: 31 de Julio de 2020 | H64: 2000000 | I64: 2000000 | J64: 3332 | K64: 4314 | L64: JORGE OLMOS NAVARRO | M64: DIRECTOR FINANCIERO | N64: 2020-07-17 | O64: https://www.contratos.gov.co/consultas/detalleProceso.do?numConstancia=20-4-10933424
A65: 63 | B65: 72432594 | C65: RUBEN DARIO UCROS | D65: 2731-2020 | E65: AUXILIAR FACTURACION | F65: 01 deJulio de 2020 | G65: 31 de Julio de 2020 | H65: 2100000 | I65: 2100000 | J65: 3333 | K65: 4315 | L65: SANDRA SANMARTIN | M65: SUBGERENTE ADMINISTRATIVO | N65: 2020-07-17 | O65: https://www.contratos.gov.co/consultas/detalleProceso.do?numConstancia=20-4-10933433
A66: 64 | B66: 22642515 | C66: NOHEMI ESPERANZA CASTRO LOPEZ | D66: 2732-2020 | E66: AUDITOR DE CALIDAD Y SERVICIOS DE SALUD | F66: 01 deJulio de 2020 | G66: 31 de Julio de 2020 | H66: 4000000 | I66: 4000000 | J66: 3334 | K66: 4316 | L66: BETTY PERTUZ | M66: SUBGERENTE CIENTIFICO | N66: 2020-07-17 | O66: https://www.contratos.gov.co/consultas/detalleProceso.do?numConstancia=20-4-10933442
A67: 65 | B67: 1045670289 | C67: HOLMAN ALEXANDER AVILA FERNANDEZ | D67: 2733-2020 | E67: AUXILIAR FACTURACION CENTRAL | F67: 01 deJulio de 2020 | G67: 31 de Julio de 2020 | H67: 3000000 | I67: =+H67*1 -> 3000000 | J67: 3335 | K67: 4317 | L67: SANDRA SANMARTIN | M67: SUBGERENTE ADMINISTRATIVO | N67: 2020-07-17 | O67: https://www.contratos.gov.co/consultas/detalleProceso.do?numConstancia=20-4-10933453
A68: =+A67+1 -> 66 | B68: 8639410 | C68: CESAR OCTAVIO VARGAS DURAN | D68: 2734-2020 | E68: TECNICO AMBIENTAL | F68: 01 deJulio de 2020 | G68: 31 de Julio de 2020 | H68: 2500000 | I68: 2500000 | J68: 3336 | K68: 4318 | L68: JAIME ALVAREZ NORIEGA | M68: INGENIERO AMBIENTAL | N68: 2020-07-17 | O68: https://www.contratos.gov.co/consultas/detalleProceso.do?numConstancia=20-4-10933463
A69: 67 | B69: 1047334999 | C69: MARTHA INES SALCEDO HUN | D69: 2735-2020 | E69: ASESORA GESTION AMBIENTAL | F69: 01 deJulio de 2020 | G69: 31 de Julio de 2020 | H69: 5800000 | I69: 5800000 | J69: 3337 | K69: 4319 | L69: JUAN ESTEBAN SANCHEZ PAEZ | M69: GERENTE | N69: 2020-07-17 | O69: https://www.contratos.gov.co/consultas/detalleProceso.do?numConstancia=20-4-10933470
A70: 68 | B70: 1124026102 | C70: LUISA FERNANDA PANA CARABALLO | D70: 2736-2020 | E70: LIDER PROCESOS FACTURACION CENTRAL | F70: 01 deJulio de 2020 | G70: 31 de Julio de 2020 | H70: 2500000 | I70: 2500000 | J70: 3338 | K70: 4320 | L70: SANDRA SANMARTIN | M70: SUBGERENTE ADMINISTRATIVO | N70: 2020-07-17 | O70: https://www.contratos.gov.co/consultas/detalleProceso.do?numConstancia=20-4-10933477
A71: 69 | B71: 1045676054 | C71: JHONNY ALVAREZ TORRENCILLA | D71: 2737-2020 | E71: INGENIERO DE SISTEMAS - PROCESOS DE SISTEMA DE INFORMACION EN FACTURACION CENTRAL | F71: 01 deJulio de 2020 | G71: 31 de Julio de 2020 | H71: 4000000 | I71: 4000000 | J71: 3339 | K71: 4321 | L71: SANDRA SANMARTIN | M71: SUBGERENTE ADMINISTRATIVO | N71: 2020-07-17 | O71: https://www.contratos.gov.co/consultas/detalleProceso.do?numConstancia=20-4-10933489
A72: 70 | B72: 44156926 | C72: GLADYS CECILIA ESCALANTE FERRER | D72: 2738-2020 | E72: AUDITOR DE CALIDAD Y SERVICIOS DE SALUD | F72: 01 deJulio de 2020 | G72: 31 de Julio de 2020 | H72: 4000000 | I72: 4000000 | J72: 3340 | K72: 4322 | L72: BETTY PERTUZ | M72: SUBGERENTE CIENTIFICO | N72: 2020-07-17 | O72: https://www.contratos.gov.co/consultas/detalleProceso.do?numConstancia=20-4-10933500
A73: 71 | B73: 22741244 | C73: ARLETH PATRICIA CARRILLO GARVIN | D73: 2739-2020 | E73: ENFERMERA JEFE DE PROMOCIÓN Y MANTENIMIENTO DE LA SALUD | F73: 01 deJulio de 2020 | G73: 31 de Julio de 2020 | H73: 2300000 | I73: 2300000 | J73: 3341 | K73: 4323 | L73: NILSA ARIZA MARQUEZ | M73: COORDINADOR PYP | N73: 2020-07-17 | O73: https://www.contratos.gov.co/consultas/detalleProceso.do?numConstancia=20-4-10933510
A74: 72 | B74: 1140847587 | C74: MAGANY JUDITH JARAMILLO MOLINA | D74: 2740-2020 | E74: INGENIERO DE SISTEMAS | F74: 01 deJulio de 2020 | G74: 31 de Julio de 2020 | H74: 3000000 | I74: 3000000 | J74: 3342 | K74: 4324 | L74: ZULLY ROMERO | M74: COORDINADOR TIC | N74: 2020-07-17 | O74: https://www.contratos.gov.co/consultas/detalleProceso.do?numConstancia=20-4-10933517
A75: 73 | B75: 1042451204 | C75: LEIDIS ESTHER MIRANDA MARCHENA | D75: 2741-2020 | E75: PROFESIONAL CONTADURIA | F75: 01 deJulio de 2020 | G75: 31 de Julio de 2020 | H75: 3000000 | I75: 3000000 | J75: 3343 | K75: 4325 | L75: JORGE OLMOS NAVARRO | M75: DIRECTOR FINANCIERO | N75: 2020-07-17 | O75: https://www.contratos.gov.co/consultas/detalleProceso.do?numConstancia=20-4-10933527
A76: 74 | B76: 55225494 | C76: ULDYS ESTHER PONZON PORTO | D76: 2742-2020 | E76: LIDER SERVICIOS MEDICOS | F76: 01 deJulio de 2020 | G76: 31 de Julio de 2020 | H76: 3700000 | I76: 3700000 | J76: 3344 | K76: 4326 | L76: BETTY PERTUZ | M76: SUBGERENTE CIENTIFICO | N76: 2020-07-17 | O76: https://www.contratos.gov.co/consultas/detalleProceso.do?numConstancia=20-4-10933536
A77: 75 | B77: 1043023724 | C77: JAILINE SOLANO MERCADO | D77: 2743-2020 | E77: ASESOR FINANCIERO | F77: 01 deJulio de 2020 | G77: 31 de Julio de 2020 | H77: 5800000 | I77: 5800000 | J77: 3345 | K77: 4327 | L77: JUAN ESTEBAN SANCHEZ PAEZ | M77: GERENTE | N77: 2020-07-17 | O77: https://www.contratos.gov.co/consultas/detalleProceso.do?numConstancia=20-4-10933544
A78: 76 | B78: 1143465478 | C78: YULEIMY LISETH YANCE CAMARGO | D78: 2744-2020 | E78: AUXILIAR ADMINISTRATIVO OFICINA JURIDICA | F78: 01 deJulio de 2020 | G78: 31 de Julio de 2020 | H78: 2200000 | I78: 2200000 | J78: 3346 | K78: 4328 | L78: ORNELLA FIORENTINO | M78: JEFE JURIDICA | N78: 2020-07-17 | O78: https://www.contratos.gov.co/consultas/detalleProceso.do?numConstancia=20-4-10933550
A79: 77 | B79: 1041899345 | C79: YESMITH ADRIANA VIZCAINO CARRILLO | D79: 2745-2020 | E79: ASISTENTE ADMINISTRATIVO | F79: 01 deJulio de 2020 | G79: 31 de Julio de 2020 | H79: 1900000 | I79: 1900000 | J79: 3347 | K79: 4329 | L79: FABIAN COLPAS OROZCO | M79: JEFE TALENTO HUMANO | N79: 2020-07-17 | O79: https://www.contratos.gov.co/consultas/detalleProceso.do?numConstancia=20-4-10933558
A80: 78 | B80: 85468633 | C80: GREGORIO RUIZ PACHECO | D80: 2746-2020 | E80: ABOGADO EXTERNO TALENTO HUMANO | F80: 01 deJulio de 2020 | G80: 31 de Julio de 2020 | H80: 4000000 | I80: 4000000 | J80: 3348 | K80: 4330 | L80: FABIAN COLPAS OROZCO | M80: JEFE TALENTO HUMANO | N80: 2020-07-17 | O80: https://www.contratos.gov.co/consultas/detalleProceso.do?numConstancia=20-4-10933575
A81: 79 | B81: 32829531 | C81: MILENA DONADO OCHOA | D81: 2747-2020 | E81: APOYO COORDINACION ODONTOLOGIA | F81: 01 deJulio de 2020 | G81: 31 de Julio de 2020 | H81: 4000000 | I81: 4000000 | J81: 3349 | K81: 4331 | L81: BETTY PERTUZ | M81: SUBGERENTE CIENTIFICO | N81: 2020-07-17 | O81: https://www.contratos.gov.co/consultas/detalleProceso.do?numConstancia=20-4-10933579
A82: 80 | B82: 57270649 | C82: MARTHA MATILDE JIMENEZ ROMERO | D82: 2748-2020 | E82: AUDITOR DE CALIDAD Y SERVICIOS DE SALUD | F82: 01 deJulio de 2020 | G82: 31 de Julio de 2020 | H82: 4000000 | I82: 4000000 | J82: 3350 | K82: 4332 | L82: BETTY PERTUZ | M82: SUBGERENTE CIENTIFICO | N82: 2020-07-17 | O82: https://www.contratos.gov.co/consultas/detalleProceso.do?numConstancia=20-4-10933585
A83: 81 | B83: 72095954 | C83: JUAN CARLOS BARROS CARO | D83: 2749-2020 | E83: ASESOR GERENCIA | F83: 01 deJulio de 2020 | G83: 31 de Julio de 2020 | H83: 4500000 | I83: 4500000 | J83: 3351 | K83: 4333 | L83: JUAN ESTEBAN SANCHEZ PAEZ | M83: GERENTE | N83: 2020-07-17 | O83: https://www.contratos.gov.co/consultas/detalleProceso.do?numConstancia=20-4-10933593
A84: 82 | B84: 19619279 | C84: GUSTAVO SEGUNDO FLORIDO HATUN | D84: 2750-2020 | E84: AUDITOR DE CALIDAD Y SERVICIOS DE SALUD | F84: 01 deJulio de 2020 | G84: 31 de Julio de 2020 | H84: 5000000 | I84: 5000000 | J84: 3352 | K84: 4334 | L84: BETTY PERTUZ | M84: SUBGERENTE CIENTIFICO | N84: 2020-07-17 | O84: https://www.contratos.gov.co/consultas/detalleProceso.do?numConstancia=20-4-10933596
A85: 83 | B85: 27895505 | C85: SANDRA GARCIA PEÑA | D85: 2751-2020 | E85: GESTION DOCUMENTAL JURIDICA | F85: 01 deJulio de 2020 | G85: 31 de Julio de 2020 | H85: 1500000 | I85: 1500000 | J85: 3353 | K85: 4335 | L85: ORNELLA FIORENTINO | M85: JEFE JURIDICA | N85: 2020-07-17 | O85: https://www.contratos.gov.co/consultas/detalleProceso.do?numConstancia=20-4-10933602
A86: 84 | B86: 22644596 | C86: GRACIELA BUSTOS RIVEROS | D86: 2752-2020 | E86: AUXILIAR ADMINISTRATIVO FACTURACIÒN | F86: 01 deJulio de 2020 | G86: 31 de Julio de 2020 | H86: 2000000 | I86: 2000000 | J86: 3354 | K86: 4336 | L86: SANDRA SANMARTIN | M86: SUBGERENTE ADMINISTRATIVO | N86: 2020-07-17 | O86: https://www.contratos.gov.co/consultas/detalleProceso.do?numConstancia=20-4-10933607
A87: 85 | B87: 1042471178 | C87: KAREM OLIANNA MONTOYA GIL | D87: 2753-2020 | E87: AUXILIAR ADMINISTRATIVO | F87: 01 deJulio de 2020 | G87: 31 de Julio de 2020 | H87: 1700000 | I87: 1700000 | J87: 3355 | K87: 4337 | L87: SANDRA SANMARTIN | M87: SUBGERENTE ADMINISTRATIVO | N87: 2020-07-17 | O87: https://www.contratos.gov.co/consultas/detalleProceso.do?numConstancia=20-4-10933616
A88: 86 | B88: 1002067698 | C88: RUTH MARINA DIAZ MAYORCA | D88: 2754-2020 | E88: AUXILIAR FACTURACION CENTRAL | F88: 01 deJulio de 2020 | G88: 31 de Julio de 2020 | H88: 2500000 | I88: 2500000 | J88: 3356 | K88: 4338 | L88: SANDRA SANMARTIN | M88: SUBGERENTE ADMINISTRATIVO | N88: 2020-07-17 | O88: https://www.contratos.gov.co/consultas/detalleProceso.do?numConstancia=20-4-10933619
A89: 87 | B89: 1042351489 | C89: YISLEY ZARETH BADILLO SARMIENTO | D89: 2755-2020 | E89: ENFERMERA JEFE | F89: 01 deJulio de 2020 | G89: 31 de Julio de 2020 | H89: 2300000 | I89: 2300000 | J89: 3357 | K89: 4339 | L89: BETTY PERTUZ | M89: SUBGERENTE CIENTIFICO | N89: 2020-07-17 | O89: https://www.contratos.gov.co/consultas/detalleProceso.do?numConstancia=20-4-10933629
A90: 88 | B90: 1048217027 | C90: ONEIDA SAMIRA MARQUEZ NARVAEZ | D90: 2756-2020 | E90: PROFESIONAL - POLITOLOGA | F90: 01 deJulio de 2020 | G90: 31 de Julio de 2020 | H90: 4000000 | I90: 4000000 | J90: 3358 | K90: 4340 | L90: GENARO GUTIERREZ DE PIÑERES | M90: JEFE DE ESTADISTICA | N90: 2020-07-17 | O90: https://www.contratos.gov.co/consultas/detalleProceso.do?numConstancia=20-4-10933635
A91: 89 | B91: 22665320 | C91: CLAUDIA DE LA CRUZ LEYVA | D91: 2757-2020 | E91: AUDITOR DE CALIDAD Y SERVICIOS DE SALUD | F91: 01 deJulio de 2020 | G91: 31 de Julio de 2020 | H91: 5800000 | I91: 5800000 | J91: 3359 | K91: 4341 | L91: JUAN ESTEBAN SANCHEZ PAEZ | M91: GERENTE | N91: 2020-07-17 | O91: https://www.contratos.gov.co/consultas/detalleProceso.do?numConstancia=20-4-10933651
A92: 90 | B92: 72151642 | C92: RUBEN DARIO LOZADA BARROS | D92: 2758-2020 | E92: CONTADOR | F92: 01 deJulio de 2020 | G92: 31 de Julio de 2020 | H92: 4000000 | I92: 4000000 | J92: 3360 | K92: 4342 | L92: LUIS DE MOYA | M92: TESORERO | N92: 2020-07-17 | O92: https://www.contratos.gov.co/consultas/detalleProceso.do?numConstancia=20-4-10933656
A93: 91 | B93: 72236961 | C93: EDWARD ENRIQUE SANCHEZ URZOLA | D93: 2759-2020 | E93: MENSAJERO | F93: 01 deJulio de 2020 | G93: 31 de Julio de 2020 | H93: 1700000 | I93: 1700000 | J93: 3361 | K93: 4343 | L93: SANDRA SANMARTIN | M93: SUBGERENTE ADMINISTRATIVO | N93: 2020-07-17 | O93: https://www.contratos.gov.co/consultas/detalleProceso.do?numConstancia=20-4-10933666
A94: 92 | B94: 77030162 | C94: YECITH MARTINEZ QUINTERO | D94: 2760-2020 | E94: ASISTETE ADMINISTRATIVO | F94: 01 deJulio de 2020 | G94: 31 de Julio de 2020 | H94: 1800000 | I94: 1800000 | J94: 3362 | K94: 4344 | L94: SANDRA SANMARTIN | M94: SUBGERENTE ADMINISTRATIVO | N94: 2020-07-17 | O94: https://www.contratos.gov.co/consultas/detalleProceso.do?numConstancia=20-4-10933672
A95: 93 | B95: 1129571476 | C95: ILIANA MATOS RAMOS | D95: 2761-2020 | E95: ABOGADO | F95: 01 deJulio de 2020 | G95: 31 de Julio de 2020 | H95: 4000000 | I95: 4000000 | J95: 3363 | K95: 4345 | L95: ORNELLA FIORENTINO | M95: JEFE JURIDICA | N95: 2020-07-17 | O95: https://www.contratos.gov.co/consultas/detalleProceso.do?numConstancia=20-4-10933680
A96: 94 | B96: 32869223 | C96: LUCILA ISABEL FONTALVO HERRERA | D96: 2762-2020 | E96: AUXILIAR ADMINISTRATIVO | F96: 01 deJulio de 2020 | G96: 31 de Julio de 2020 | H96: 2200000 | I96: 2200000 | J96: 3364 | K96: 4346 | L96: FABIAN COLPAS OROZCO | M96: JEFE TALENTO HUMANO | N96: 2020-07-17 | O96: https://www.contratos.gov.co/consultas/detalleProceso.do?numConstancia=20-4-10933685
A97: 95 | B97: 72220231 | C97: SERGIO IVAN KUNCEL MAURY | D97: 2763-2020 | E97: ASESOR GERENCIA | F97: 01 deJulio de 2020 | G97: 31 de Julio de 2020 | H97: 5000000 | I97: 5000000 | J97: 3365 | K97: 4347 | L97: JUAN ESTEBAN SANCHEZ PAEZ | M97: GERENTE | N97: 2020-07-17 | O97: https://www.contratos.gov.co/consultas/detalleProceso.do?numConstancia=20-4-10933687
A98: 96 | B98: 55238408 | C98: MILAGROS YANETH SIMANCA RODRIGUEZ | D98: 2764-2020 | E98: PROFESIONAL CONTABLE | F98: 01 deJulio de 2020 | G98: 31 de Julio de 2020 | H98: 2800000 | I98: 2800000 | J98: 3366 | K98: 4348 | L98: JORGE OLMOS NAVARRO | M98: DIRECTOR FINANCIERO | N98: 2020-07-17 | O98: https://www.contratos.gov.co/consultas/detalleProceso.do?numConstancia=20-4-10933692
A99: 97 | B99: 84453299 | C99: LUIS FERNANDO CUELLAR CANTILLO | D99: 2765-2020 | E99: ASESOR FINANCIERO | F99: 01 deJulio de 2020 | G99: 31 de Julio de 2020 | H99: 3000000 | I99: 3000000 | J99: 3367 | K99: 4349 | L99: JORGE OLMOS NAVARRO | M99: DIRECTOR FINANCIERO | N99: 2020-07-17 | O99: https://www.contratos.gov.co/consultas/detalleProceso.do?numConstancia=20-4-10933698
A100: 98 | B100: 8680252 | C100: ALVARO SAMUEL PULGAR LEMUS | D100: 2766-2020 | E100: ORIENTADOR | F100: 01 deJulio de 2020 | G100: 31 de Julio de 2020 | H100: 2000000 | I100: 2000000 | J100: 3368 | K100: 4350 | L100: FABIAN COLPAS OROZCO | M100: JEFE TALENTO HUMANO | N100: 2020-07-17 | O100: https://www.contratos.gov.co/consultas/detalleProceso.do?numConstancia=20-4-10933708
A101: 99 | B101: 72293492 | C101: RODOLFO ENRIQUE NARVAEZ GUTIERREZ | D101: 2768-2020 | E101: PROFESIONAL ESTADISTICA | F101: 01 deJulio de 2020 | G101: 31 de Julio de 2020 | H101: 3500000 | I101: 3500000 | J101: 3370 | K101: 4352 | L101: GENARO GUTIERREZ DE PIÑERES | M101: JEFE DE ESTADISTICA | N101: 2020-07-17 | O101: https://www.contratos.gov.co/consultas/detalleProceso.do?numConstancia=20-4-10933721
A102: 100 | B102: 1007071572 | C102: EVELYN JOHANNA GARCIA PEREZ | D102: 2769-2020 | E102: AUXILIAR ADMINISTRATIVO -VENTANILLA UNICA | F102: 01 deJulio de 2020 | G102: 31 de Julio de 2020 | H102: 2500000 | I102: 2500000 | J102: 3371 | K102: 4353 | L102: SANDRA SANMARTIN | M102: SUBGERENTE ADMINISTRATIVO | N102: 2020-07-20 | O102: https://www.contratos.gov.co/consultas/detalleProceso.do?numConstancia=20-4-10933729
A103: 101 | B103: 22732194 | C103: MARLEY VASQUEZ VARGAS | D103: 2770-2020 | E103: LIDER DE FACTURACION EN CENTROS DE SALUD | F103: 01 deJulio de 2020 | G103: 31 de Julio de 2020 | H103: 1700000 | I103: 1700000 | J103: 3372 | K103: 4354 | L103: SANDRA SANMARTIN | M103: SUBGERENTE ADMINISTRATIVO | N103: 2020-07-17 | O103: https://www.contratos.gov.co/consultas/detalleProceso.do?numConstancia=20-4-10933738
A104: 102 | B104: 32767778 | C104: BEATRIZ ELENA GUTIERREZ AHUMADA | D104: 2771-2020 | E104: DIGITADOR PAI WEB | F104: 01 deJulio de 2020 | G104: 31 de Julio de 2020 | H104: 1458000 | I104: 1458000 | J104: 3373 | K104: 4355 | L104: YURANIS BONIFAS | M104: COORDINADOR PAIWEB | N104: 2020-07-17 | O104: https://www.contratos.gov.co/consultas/detalleProceso.do?numConstancia=20-4-10933746
A105: 103 | B105: 1143439595 | C105: DAYANA PAOLA OTALORA AMAYA | D105: 2772-2020 | E105: DIGITADOR PAI WEB | F105: 01 deJulio de 2020 | G105: 31 de Julio de 2020 | H105: 1458000 | I105: 1458000 | J105: 3374 | K105: 4356 | L105: YURANIS BONIFAS | M105: COORDINADOR PAIWEB | N105: 2020-07-17 | O105: https://www.contratos.gov.co/consultas/detalleProceso.do?numConstancia=20-4-10933752
A106: 104 | B106: 72170268 | C106: FABIAN FERNANDO MERCADO | D106: 2773-2020 | E106: DIGITADOR PAI WEB | F106: 01 deJulio de 2020 | G106: 31 de Julio de 2020 | H106: 1458000 | I106: 1458000 | J106: 3375 | K106: 4357 | L106: YURANIS BONIFAS | M106: COORDINADOR PAIWEB | N106: 2020-07-17 | O106: https://www.contratos.gov.co/consultas/detalleProceso.do?numConstancia=20-4-10933760
A107: 105 | B107: 1010123461 | C107: IVAN RAMIRO MORENO MENDOZA | D107: 2774-2020 | E107: DIGITADOR PAI WEB | F107: 01 deJulio de 2020 | G107: 31 de Julio de 2020 | H107: 1458000 | I107: 1458000 | J107: 3376 | K107: 4358 | L107: YURANIS BONIFAS | M107: COORDINADOR PAIWEB | N107: 2020-07-17 | O107: https://www.contratos.gov.co/consultas/detalleProceso.do?numConstancia=20-4-10933823
A108: 106 | B108: 73140179 | C108: JULIO CESAR LOPEZ ROMERO | D108: 2775-2020 | E108: DIGITADOR PAI WEB | F108: 01 deJulio de 2020 | G108: 31 de Julio de 2020 | H108: 1458000 | I108: 1458000 | J108: 3377 | K108: 4359 | L108: YURANIS BONIFAS | M108: COORDINADOR PAIWEB | N108: 2020-07-18 | O108: https://www.contratos.gov.co/consultas/detalleProceso.do?numConstancia=20-4-10936727
A109: 107 | B109: 22468261 | C109: KANYA MALLERLY BERNAL BECERRA | D109: 2776-2020 | E109: DIGITADOR PAI WEB | F109: 01 deJulio de 2020 | G109: 31 de Julio de 2020 | H109: 2200000 | I109: 2200000 | J109: 3378 | K109: 4360 | L109: YURANIS BONIFAS | M109: COORDINADOR PAIWEB | N109: 2020-07-18 | O109: https://www.contratos.gov.co/consultas/detalleProceso.do?numConstancia=20-4-10936732
A110: 108 | B110: 1001798861 | C110: MARTHA LAURA VIZCAINO PEREZ | D110: 2777-2020 | E110: DIGITADOR PAI WEB | F110: 01 deJulio de 2020 | G110: 31 de Julio de 2020 | H110: 1458000 | I110: 1458000 | J110: 3379 | K110: 4361 | L110: YURANIS BONIFAS | M110: COORDINADOR PAIWEB | N110: 2020-07-18 | O110: https://www.contratos.gov.co/consultas/detalleProceso.do?numConstancia=20-4-10936733
A111: 109 | B111: 1042439971 | C111: ROGER RAFAEL RAMBAO NIEBLES | D111: 2778-2020 | E111: DIGITADOR PAI WEB | F111: 01 deJulio de 2020 | G111: 31 de Julio de 2020 | H111: 1458000 | I111: 1458000 | J111: 3380 | K111: 4362 | L111: YURANIS BONIFAS | M111: COORDINADOR PAIWEB | N111: 2020-07-18 | O111: https://www.contratos.gov.co/consultas/detalleProceso.do?numConstancia=20-4-10936735
A112: 110 | B112: 1143132965 | C112: YERLIS PAOLA GAMARRA BORJA | D112: 2779-2020 | E112: DIGITADOR PAI WEB | F112: 01 deJulio de 2020 | G112: 31 de Julio de 2020 | H112: 1800000 | I112: 1800000 | J112: 3381 | K112: 4363 | L112: YURANIS BONIFAS | M112: COORDINADOR PAIWEB | N112: 2020-07-18 | O112: https://www.contratos.gov.co/consultas/detalleProceso.do?numConstancia=20-4-10936741
A113: 111 | B113: 8566775 | C113: ALEJANDRO LIBARDO ALEMAN MARQUEZ | D113: 2780-2020 | E113: AUXILIAR DE ARCHIVO | F113: 01 deJulio de 2020 | G113: 31 de Julio de 2020 | H113: 1500000 | I113: 1500000 | J113: 3382 | K113: 4364 | L113: SANDRA SANMARTIN | M113: SUBGERENTE ADMINISTRATIVO | N113: 2020-07-18 | O113: https://www.contratos.gov.co/consultas/detalleProceso.do?numConstancia=20-4-10936742
A114: 112 | B114: 15666678 | C114: ALFREDO ANTONIO RAMIREZ PEREIRA | D114: 2781-2020 | E114: LIDER ARCHIVO CENTRAL | F114: 01 deJulio de 2020 | G114: 31 de Julio de 2020 | H114: 3000000 | I114: 3000000 | J114: 3383 | K114: 4365 | L114: SANDRA SANMARTIN | M114: SUBGERENTE ADMINISTRATIVO | N114: 2020-07-18 | O114: https://www.contratos.gov.co/consultas/detalleProceso.do?numConstancia=20-4-10936744
A115: 113 | B115: 32813366 | C115: ANA GONZALEZ ZAMBRANO | D115: 2782-2020 | E115: AUXILIAR DE ARCHIVO | F115: 01 deJulio de 2020 | G115: 31 de Julio de 2020 | H115: 1500000 | I115: 1500000 | J115: 3384 | K115: 4366 | L115: SANDRA SANMARTIN | M115: SUBGERENTE ADMINISTRATIVO | N115: 2020-07-18 | O115: https://www.contratos.gov.co/consultas/detalleProceso.do?numConstancia=20-4-10936745
A116: 114 | B116: 32772038 | C116: ELIANA BEATRIZ ABRIL DE LA ROSA | D116: 2783-2020 | E116: GESTION DOCUMENTAL TALENTO HUMANO | F116: 01 deJulio de 2020 | G116: 31 de Julio de 2020 | H116: 1900000 | I116: 1900000 | J116: 3385 | K116: 4367 | L116: FABIAN COLPAS OROZCO | M116: JEFE TALENTO HUMANO | N116: 2020-07-18 | O116: https://www.contratos.gov.co/consultas/detalleProceso.do?numConstancia=20-4-10936746
A117: 115 | B117: 1007045398 | C117: ELIEZER VEGA ARAGON | D117: 2784-2020 | E117: AUXILIAR DE ARCHIVO | F117: 01 deJulio de 2020 | G117: 31 de Julio de 2020 | H117: 1500000 | I117: 1500000 | J117: 3386 | K117: 4368 | L117: SANDRA SANMARTIN | M117: SUBGERENTE ADMINISTRATIVO | N117: 2020-07-18 | O117: https://www.contratos.gov.co/consultas/detalleProceso.do?numConstancia=20-4-10936752
A118: 116 | B118: 1042448309 | C118: GERALDINE ALEXANDRA MEDRANO IGLESIAS | D118: 2785-2020 | E118: AUXILIAR DE ARCHIVO | F118: 01 deJulio de 2020 | G118: 31 de Julio de 2020 | H118: 1900000 | I118: 1900000 | J118: 3387 | K118: 4369 | L118: SANDRA SANMARTIN | M118: SUBGERENTE ADMINISTRATIVO | N118: 2020-07-18 | O118: https://www.contratos.gov.co/consultas/detalleProceso.do?numConstancia=20-4-10936761
A119: 117 | B119: 1047337864 | C119: MARTHA MARÍA ARIZA FONTALVO | D119: 2786-2020 | E119: AUXILIAR DE ARCHIVO | F119: 01 deJulio de 2020 | G119: 31 de Julio de 2020 | H119: 1500000 | I119: 1500000 | J119: 3388 | K119: 4370 | L119: SANDRA SANMARTIN | M119: SUBGERENTE ADMINISTRATIVO | N119: 2020-07-18 | O119: https://www.contratos.gov.co/consultas/detalleProceso.do?numConstancia=20-4-10936765
A120: 118 | B120: 22562553 | C120: SILVANA BEATRIZ GONZALEZ MORENO | D120: 2787-2020 | E120: AUXILIAR ADMINISTRATIVO ALMACEN | F120: 01 deJulio de 2020 | G120: 31 de Julio de 2020 | H120: 1900000 | I120: 1900000 | J120: 3389 | K120: 4371 | L120: ESTARLEN LECHUGA | M120: JEFE DE ALMACEN | N120: 2020-07-18 | O120: https://www.contratos.gov.co/consultas/detalleProceso.do?numConstancia=20-4-10936766
A121: 119 | B121: 32826802 | C121: ROCIO ISABEL FRIAS COLPAS | D121: 2788-2020 | E121: PERSONAL LIMPIEZA Y ASEO | F121: 01 deJulio de 2020 | G121: 31 de Julio de 2020 | H121: 1215000 | I121: 1215000 | J121: 3390 | K121: 4372 | L121: JAIME ALVAREZ NORIEGA | M121: INGENIERO AMBIENTAL | N121: 2020-07-18 | O121: https://www.contratos.gov.co/consultas/detalleProceso.do?numConstancia=20-4-10936768
A122: 120 | B122: 1043142073 | C122: DORALIZ ECHEVERRI PEREZ | D122: 2789-2020 | E122: GESTION DOCUMENTAL TALENTO HUMANO | F122: 01 deJulio de 2020 | G122: 31 de Julio de 2020 | H122: 1500000 | I122: 1500000 | J122: 3391 | K122: 4373 | L122: FABIAN COLPAS OROZCO | M122: JEFE TALENTO HUMANO | N122: 2020-07-18 | O122: https://www.contratos.gov.co/consultas/detalleProceso.do?numConstancia=20-4-10936769
A123: 121 | B123: 32826839 | C123: BEATRIZ ISABEL SANMARTIN ESCORCIA | D123: 2790-2020 | E123: VACUNADORA PAI WEB | F123: 01 deJulio de 2020 | G123: 31 de Julio de 2020 | H123: 1400000 | I123: 1400000 | J123: 3392 | K123: 4374 | L123: YURANIS BONIFAS | M123: COORDINADOR PAIWEB | N123: 2020-07-18 | O123: https://www.contratos.gov.co/consultas/detalleProceso.do?numConstancia=20-4-10936771
A124: 122 | B124: 8647518 | C124: LUIS CARLOS MERCADO MARTINEZ | D124: 2791-2020 | E124: AUXILIAR DE ARCHIVO | F124: 01 deJulio de 2020 | G124: 31 de Julio de 2020 | H124: 2000000 | I124: 2000000 | J124: 3393 | K124: 4375 | L124: SANDRA SANMARTIN | M124: SUBGERENTE ADMINISTRATIVO | N124: 2020-07-18 | O124: https://www.contratos.gov.co/consultas/detalleProceso.do?numConstancia=20-4-10936774
A125: 123 | B125: 1007124107 | C125: JEAN CARLOS PEÑA CERVANTES | D125: 2792-2020 | E125: AUXILIAR DE ARCHIVO | F125: 01 deJulio de 2020 | G125: 31 de Julio de 2020 | H125: 1900000 | I125: 1900000 | J125: 3394 | K125: 4376 | L125: SANDRA SANMARTIN | M125: SUBGERENTE ADMINISTRATIVO | N125: 2020-07-18 | O125: https://www.contratos.gov.co/consultas/detalleProceso.do?numConstancia=20-4-10936775
A126: 124 | B126: 32818371 | C126: IVETTE CECILIA SARMIENTO DONADO | D126: 2793-2020 | E126: AUXILIAR DE ARCHIVO | F126: 01 deJulio de 2020 | G126: 31 de Julio de 2020 | H126: 1500000 | I126: 1500000 | J126: 3395 | K126: 4377 | L126: SANDRA SANMARTIN | M126: SUBGERENTE ADMINISTRATIVO | N126: 2020-07-18 | O126: https://www.contratos.gov.co/consultas/detalleProceso.do?numConstancia=20-4-10936779
A127: 125 | B127: 40993662 | C127: YEIMIS ESTHER DE LAS AGUAS ARIZA | D127: 2794-2020 | E127: AUXILIAR DE ARCHIVO | F127: 01 deJulio de 2020 | G127: 31 de Julio de 2020 | H127: 2000000 | I127: 2000000 | J127: 3396 | K127: 4378 | L127: SANDRA SANMARTIN | M127: SUBGERENTE ADMINISTRATIVO | N127: 2020-07-18 | O127: https://www.contratos.gov.co/consultas/detalleProceso.do?numConstancia=20-4-10936782
A128: 126 | B128: 72098736 | C128: EVARISTO RAFAEL BARRIOS DE LA ROSA | D128: 2795-2020 | E128: TECNICO DE ALMACEN | F128: 01 deJulio de 2020 | G128: 31 de Julio de 2020 | H128: 2300000 | I128: 2300000 | J128: 3397 | K128: 4379 | L128: ESTARLEN LECHUGA | M128: JEFE DE ALMACEN | N128: 2020-07-18 | O128: https://www.contratos.gov.co/consultas/detalleProceso.do?numConstancia=20-4-10936784
A129: 127 | B129: 8774531 | C129: MARIANO JOSE UCROS ROMERO | D129: 2796-2020 | E129: AUXILIAR DE ARCHIVO | F129: 01 deJulio de 2020 | G129: 31 de Julio de 2020 | H129: 1500000 | I129: 1500000 | J129: 3398 | K129: 4380 | L129: SANDRA SANMARTIN | M129: SUBGERENTE ADMINISTRATIVO | N129: 2020-07-18 | O129: https://www.contratos.gov.co/consultas/detalleProceso.do?numConstancia=20-4-10936787
A130: 128 | B130: 1001893516 | C130: ANDREA ALEJANDRA CERVANTES CORNIN | D130: 2797-2020 | E130: AUXILIAR DE ARCHIVO | F130: 01 deJulio de 2020 | G130: 31 de Julio de 2020 | H130: 1500000 | I130: =+H130*1 -> 1500000 | J130: 3399 | K130: 4381 | L130: SANDRA SANMARTIN | M130: SUBGERENTE ADMINISTRATIVO | N130: 2020-07-18 | O130: https://www.contratos.gov.co/consultas/detalleProceso.do?numConstancia=20-4-10936790
A131: 129 | B131: 22664852 | C131: VILMAIRA JUDITH BOLANO VALENCIA | D131: 2798-2020 | E131: GESTION DOCUMENTAL TALENTO HUMANO | F131: 01 deJulio de 2020 | G131: 31 de Julio de 2020 | H131: 1700000 | I131: 1700000 | J131: 3400 | K131: 4382 | L131: FABIAN COLPAS OROZCO | M131: JEFE TALENTO HUMANO | N131: 2020-07-18 | O131: https://www.contratos.gov.co/consultas/detalleProceso.do?numConstancia=20-4-10936793
A132: =+A131+1 -> 130 | B132: 32816898 | C132: ISABEL OSORIO BARRIOS | D132: 2799-2020 | E132: VACUNADORA PAI WEB | F132: 01 deJulio de 2020 | G132: 31 de Julio de 2020 | H132: 1400000 | I132: 1400000 | J132: 3401 | K132: 4383 | L132: YURANIS BONIFAS | M132: COORDINADOR PAIWEB | N132: 2020-07-18 | O132: https://www.contratos.gov.co/consultas/detalleProceso.do?numConstancia=20-4-10936796
A133: 131 | B133: 1001800132 | C133: YARIMA CHARRIS BOLAÑO | D133: 2800-2020 | E133: GESTION DOCUMENTAL TALENTO HUMANO | F133: 01 deJulio de 2020 | G133: 31 de Julio de 2020 | H133: 1700000 | I133: 1700000 | J133: 3402 | K133: 4384 | L133: FABIAN COLPAS OROZCO | M133: JEFE TALENTO HUMANO | N133: 2020-07-18 | O133: https://www.contratos.gov.co/consultas/detalleProceso.do?numConstancia=20-4-10936797
A134: 132 | B134: 55221348 | C134: MERCEDES SUSANA ESTARITA GUTIERREZ DE PIÑERES | D134: 2801-2020 | E134: AUXILIAR DE ARCHIVO | F134: 01 deJulio de 2020 | G134: 31 de Julio de 2020 | H134: 2000000 | I134: 2000000 | J134: 3403 | K134: 4385 | L134: SANDRA SANMARTIN | M134: SUBGERENTE ADMINISTRATIVO | N134: 2020-07-18 | O134: https://www.contratos.gov.co/consultas/detalleProceso.do?numConstancia=20-4-10936800
A135: 133 | B135: 1001878251 | C135: MAYRA ALEJANDRA ESCORCIA DE LA HOZ | D135: 2802-2020 | E135: AUXILIAR DE ARCHIVO | F135: 01 deJulio de 2020 | G135: 31 de Julio de 2020 | H135: 1500000 | I135: 1500000 | J135: 3404 | K135: 4386 | L135: SANDRA SANMARTIN | M135: SUBGERENTE ADMINISTRATIVO | N135: 2020-07-18 | O135: https://www.contratos.gov.co/consultas/detalleProceso.do?numConstancia=20-4-10936802
A136: 134 | B136: 22446125 | C136: GENOVEVA MARIA LLANES JEREZ | D136: 2803-2020 | E136: VACUNADORA PAI WEB | F136: 01 deJulio de 2020 | G136: 31 de Julio de 2020 | H136: 1400000 | I136: 1400000 | J136: 3405 | K136: 4387 | L136: YURANIS BONIFAS | M136: COORDINADOR PAIWEB | N136: 2020-07-18 | O136: https://www.contratos.gov.co/consultas/detalleProceso.do?numConstancia=20-4-10936803
A137: 135 | B137: 72098690 | C137: JAVIER ENRIQUE BARANDICA | D137: 2804-2020 | E137: TECNICO DE ALMACEN | F137: 01 deJulio de 2020 | G137: 31 de Julio de 2020 | H137: 2300000 | I137: 2300000 | J137: 3406 | K137: 4388 | L137: ESTARLEN LECHUGA | M137: JEFE DE ALMACEN | N137: 2020-07-18 | O137: https://www.contratos.gov.co/consultas/detalleProceso.do?numConstancia=20-4-10936807
A138: 136 | B138: 1043002864 | C138: JAIRO ISACC BARRIOS AVILA | D138: 2805-2020 | E138: AUXILIAR DE ARCHIVO | F138: 01 deJulio de 2020 | G138: 31 de Julio de 2020 | H138: 1900000 | I138: 1900000 | J138: 3407 | K138: 4389 | L138: SANDRA SANMARTIN | M138: SUBGERENTE ADMINISTRATIVO | N138: 2020-07-18 | O138: https://www.contratos.gov.co/consultas/detalleProceso.do?numConstancia=20-4-10936808
A139: 137 | B139: 1001881009 | C139: ARMANDO JOSE JINETE BARRIOS | D139: 2806-2020 | E139: AUXILIAR DE ARCHIVO | F139: 01 deJulio de 2020 | G139: 31 de Julio de 2020 | H139: 1500000 | I139: 1500000 | J139: 3408 | K139: 4390 | L139: SANDRA SANMARTIN | M139: SUBGERENTE ADMINISTRATIVO | N139: 2020-07-18 | O139: https://www.contratos.gov.co/consultas/detalleProceso.do?numConstancia=20-4-10936812
A140: 138 | B140: 32788911 | C140: PEGGY ESTHER CARRILLO MUÑOZ | D140: 2807-2020 | E140: DIGITADOR PAI WEB | F140: 01 deJulio de 2020 | G140: 31 de Julio de 2020 | H140: 1458000 | I140: 1458000 | J140: 3409 | K140: 4391 | L140: YURANIS BONIFAS | M140: COORDINADOR PAIWEB | N140: 2020-07-18 | O140: https://www.contratos.gov.co/consultas/detalleProceso.do?numConstancia=20-4-10936814
A141: 139 | B141: 32820220 | C141: YARLENE DEL SOCORRO DE AVILA DE ALBA | D141: 2808-2020 | E141: VACUNADORA PAI WEB | F141: 01 deJulio de 2020 | G141: 31 de Julio de 2020 | H141: 1400000 | I141: 1400000 | J141: 3410 | K141: 4392 | L141: YURANIS BONIFAS | M141: COORDINADOR PAIWEB | N141: 2020-07-18 | O141: https://www.contratos.gov.co/consultas/detalleProceso.do?numConstancia=20-4-10936817
A142: 140 | B142: 32619158 | C142: ISABEL HERRERA PACHECO | D142: 2809-2020 | E142: VACUNADORA PAI WEB | F142: 01 deJulio de 2020 | G142: 31 de Julio de 2020 | H142: 1400000 | I142: 1400000 | J142: 3411 | K142: 4393 | L142: YURANIS BONIFAS | M142: COORDINADOR PAIWEB | N142: 2020-07-18 | O142: https://www.contratos.gov.co/consultas/detalleProceso.do?numConstancia=20-4-10936818
A143: 141 | B143: 79678698 | C143: WILSON PASTOR RUIZ ORELLANO | D143: 2810-2020 | E143: AUXILIAR DE ARCHIVO | F143: 01 deJulio de 2020 | G143: 31 de Julio de 2020 | H143: 1700000 | I143: 1700000 | J143: 3412 | K143: 4394 | L143: SANDRA SANMARTIN | M143: SUBGERENTE ADMINISTRATIVO | N143: 2020-07-18 | O143: https://www.contratos.gov.co/consultas/detalleProceso.do?numConstancia=20-4-10936822
A144: 142 | B144: 1043605412 | C144: SANDRA MILENA REALES ARIZA | D144: 2811-2020 | E144: AUXILIAR DE ARCHIVO | F144: 01 deJulio de 2020 | G144: 31 de Julio de 2020 | H144: 1700000 | I144: 1700000 | J144: 3413 | K144: 4395 | L144: SANDRA SANMARTIN | M144: SUBGERENTE ADMINISTRATIVO | N144: 2020-07-18 | O144: https://www.contratos.gov.co/consultas/detalleProceso.do?numConstancia=20-4-10936824
A145: 143 | B145: 1140889995 | C145: CAROLAY JHOANA LUNA GOMEZ | D145: 2812-2020 | E145: ASISTENTE ADMINISTRATIVO COORDINACION MEDICA | F145: 01 deJulio de 2020 | G145: 31 de Julio de 2020 | H145: 1900000 | I145: 1900000 | J145: 3414 | K145: 4396 | L145: SERGIO BOVEA MARIN | M145: COORD CENTRO DE SALUD | N145: 2020-07-18 | O145: https://www.contratos.gov.co/consultas/detalleProceso.do?numConstancia=20-4-10936827
A146: 144 | B146: 55309225 | C146: ADRIANA BALLESTAS MARTINEZ | D146: 2813-2020 | E146: MEDICO DE URGENCIA | F146: 01 deJulio de 2020 | G146: 31 de Julio de 2020 | H146: 3072000 | I146: 3072000 | J146: 3415 | K146: 4397 | L146: SERGIO BOVEA MARIN | M146: COORD CENTRO DE SALUD | N146: 2020-07-18 | O146: https://www.contratos.gov.co/consultas/detalleProceso.do?numConstancia=20-4-10936828
A147: 145 | B147: 1042428171 | C147: ALEX ENRIQUE VILLARREAL IBAÑEZ | D147: 2814-2020 | E147: ODONTOLOGO | F147: 01 deJulio de 2020 | G147: 31 de Julio de 2020 | H147: 1900000 | I147: 1900000 | J147: 3416 | K147: 4398 | L147: SERGIO BOVEA MARIN | M147: COORD CENTRO DE SALUD | N147: 2020-07-18 | O147: https://www.contratos.gov.co/consultas/detalleProceso.do?numConstancia=20-4-10936829
A148: 146 | B148: 22523223 | C148: ALEXANDRA ESTHER MOLINA PEREZ | D148: 2815-2020 | E148: PERSONAL LIMPIEZA Y ASEO URGENCIA | F148: 01 deJulio de 2020 | G148: 31 de Julio de 2020 | H148: 1653600 | I148: 1653600 | J148: 3417 | K148: 4399 | L148: JAIME ALVAREZ NORIEGA | M148: INGENIERO AMBIENTAL | N148: 2020-07-18 | O148: https://www.contratos.gov.co/consultas/detalleProceso.do?numConstancia=20-4-10936830
A149: 147 | B149: 72000601 | C149: ALEXIS JAVIER SUAREZ CABALLERO | D149: 2816-2020 | E149: AUXILIAR DE FACTURACIÓN URGENCIA | F149: 01 deJulio de 2020 | G149: 31 de Julio de 2020 | H149: 1680000 | I149: 1680000 | J149: 3418 | K149: 4400 | L149: SANDRA SANMARTIN | M149: SUBGERENTE ADMINISTRATIVO | N149: 2020-07-18 | O149: https://www.contratos.gov.co/consultas/detalleProceso.do?numConstancia=20-4-10936831
A150: 148 | B150: 8697543 | C150: ALVARO ARENAS GONZALEZ | D150: 2817-2020 | E150: MEDICO DE RUTA INTEGRAL MATERNO PERINATAL | F150: 01 deJulio de 2020 | G150: 31 de Julio de 2020 | H150: 5088000 | I150: 5088000 | J150: 3419 | K150: 4401 | L150: SERGIO BOVEA MARIN | M150: COORD CENTRO DE SALUD | N150: 2020-07-18 | O150: https://www.contratos.gov.co/consultas/detalleProceso.do?numConstancia=20-4-10936833
A151: 149 | B151: 8501206 | C151: AUGUSTO RAFAEL VALENCIA OCAMPO | D151: 2818-2020 | E151: AUXILIAR DE FACTURACIÓN URGENCIA | F151: 01 deJulio de 2020 | G151: 31 de Julio de 2020 | H151: 1680000 | I151: 1680000 | J151: 3420 | K151: 4402 | L151: SERGIO BOVEA MARIN | M151: COORD CENTRO DE SALUD | N151: 2020-07-18 | O151: https://www.contratos.gov.co/consultas/detalleProceso.do?numConstancia=20-4-10936834
A152: 150 | B152: 1140872217 | C152: BLEYDIS LORAINE PELAEZ LOBO | D152: 2819-2020 | E152: MEDICO DE URGENCIA | F152: 01 deJulio de 2020 | G152: 31 de Julio de 2020 | H152: 3072000 | I152: 3072000 | J152: 3421 | K152: 4403 | L152: SERGIO BOVEA MARIN | M152: COORD CENTRO DE SALUD | N152: 2020-07-18 | O152: https://www.contratos.gov.co/consultas/detalleProceso.do?numConstancia=20-4-10936837
A153: 151 | B153: 44158949 | C153: CARMEN PACHECO VARELA | D153: 2820-2020 | E153: PERSONAL LIMPIEZA Y ASEO URGENCIA | F153: 01 deJulio de 2020 | G153: 31 de Julio de 2020 | H153: 1653600 | I153: 1653600 | J153: 3422 | K153: 4404 | L153: JAIME ALVAREZ NORIEGA | M153: INGENIERO AMBIENTAL | N153: 2020-07-18 | O153: https://www.contratos.gov.co/consultas/detalleProceso.do?numConstancia=20-4-10936838
A154: 152 | B154: 32712485 | C154: CASILDA LARA SOLANO | D154: 2821-2020 | E154: MEDICO DE RUTA INTEGRAL MATERNO PERINATAL | F154: 01 deJulio de 2020 | G154: 31 de Julio de 2020 | H154: 2120000 | I154: 2120000 | J154: 3423 | K154: 4405 | L154: SERGIO BOVEA MARIN | M154: COORD CENTRO DE SALUD | N154: 2020-07-18 | O154: https://www.contratos.gov.co/consultas/detalleProceso.do?numConstancia=20-4-10936839
A155: 153 | B155: 1042442558 | C155: DANISA PAOLA BARRIOS DE ALBA | D155: 2822-2020 | E155: NUTRICIONISTA | F155: 01 deJulio de 2020 | G155: 31 de Julio de 2020 | H155: 2760000 | I155: 2760000 | J155: 3424 | K155: 4406 | L155: SERGIO BOVEA MARIN | M155: COORD CENTRO DE SALUD | N155: 2020-07-18 | O155: https://www.contratos.gov.co/consultas/detalleProceso.do?numConstancia=20-4-10936841
A156: 154 | B156: 1082405551 | C156: DESIRETH ESTRADA FERNANDEZ | D156: 2823-2020 | E156: ENFERMERA JEFE DE PROMOCIÓN Y MANTENIMIENTO DE LA SALUD | F156: 01 deJulio de 2020 | G156: 31 de Julio de 2020 | H156: =2300000 -> 2300000 | I156: 2300000 | J156: 3425 | K156: 4407 | L156: SERGIO BOVEA MARIN | M156: COORD CENTRO DE SALUD | N156: 2020-07-18 | O156: https://www.contratos.gov.co/consultas/detalleProceso.do?numConstancia=20-4-10936843
A157: 155 | B157: 32818082 | C157: DIVINA LUZ NIETO ZAMBRANO | D157: 2824-2020 | E157: PERSONAL LIMPIEZA Y ASEO URGENCIA | F157: 01 deJulio de 2020 | G157: 31 de Julio de 2020 | H157: 1653600 | I157: 1653600 | J157: 3426 | K157: 4408 | L157: JAIME ALVAREZ NORIEGA | M157: INGENIERO AMBIENTAL | N157: 2020-07-18 | O157: https://www.contratos.gov.co/consultas/detalleProceso.do?numConstancia=20-4-10936844
A158: 156 | B158: 8734956 | C158: EFRAIN CANTILLO GUERRERO | D158: 2825-2020 | E158: CONDUCTOR DE AMBULANCIA | F158: 01 deJulio de 2020 | G158: 31 de Julio de 2020 | H158: 2160000 | I158: 2160000 | J158: 3427 | K158: 4409 | L158: BETTY PERTUZ | M158: SUBGERENTE CIENTIFICO | N158: 2020-07-18 | O158: https://www.contratos.gov.co/consultas/detalleProceso.do?numConstancia=20-4-10936846
A159: 157 | B159: 8750161 | C159: EFRAIN DE LA HOZ ROCHEL | D159: 2826-2020 | E159: MEDICO DE URGENCIA | F159: 01 deJulio de 2020 | G159: 31 de Julio de 2020 | H159: 3072000 | I159: 3072000 | J159: 3428 | K159: 4410 | L159: SERGIO BOVEA MARIN | M159: COORD CENTRO DE SALUD | N159: 2020-07-18 | O159: https://www.contratos.gov.co/consultas/detalleProceso.do?numConstancia=20-4-10936848
A160: 158 | B160: 1042436156 | C160: EMELY ESCORCIA MARTINEZ | D160: 2827-2020 | E160: ENFERMERA JEFE URGENCIAS | F160: 01 deJulio de 2020 | G160: 31 de Julio de 2020 | H160: 2280000 | I160: 2280000 | J160: 3429 | K160: 4411 | L160: SERGIO BOVEA MARIN | M160: COORD CENTRO DE SALUD | N160: 2020-07-18 | O160: https://www.contratos.gov.co/consultas/detalleProceso.do?numConstancia=20-4-10936849
A161: 159 | B161: 22693401 | C161: EMILIA ANTONIA BARCELO DE PARRA | D161: 2828-2020 | E161: PERSONAL LIMPIEZA Y ASEO URGENCIA | F161: 01 deJulio de 2020 | G161: 31 de Julio de 2020 | H161: 1653600 | I161: 1653600 | J161: 3430 | K161: 4412 | L161: JAIME ALVAREZ NORIEGA | M161: INGENIERO AMBIENTAL | N161: 2020-07-18 | O161: https://www.contratos.gov.co/consultas/detalleProceso.do?numConstancia=20-4-10936851
A162: 160 | B162: 8718276 | C162: ENRIQUE PACHECO PACHECO | D162: 2829-2020 | E162: MEDICO DE URGENCIA | F162: 01 deJulio de 2020 | G162: 31 de Julio de 2020 | H162: 3072000 | I162: 3072000 | J162: 3431 | K162: 4413 | L162: SERGIO BOVEA MARIN | M162: COORD CENTRO DE SALUD | N162: 2020-07-18 | O162: https://www.contratos.gov.co/consultas/detalleProceso.do?numConstancia=20-4-10936853
A163: 161 | B163: 32821813 | C163: ESPERANZA OROZCO MORENO | D163: 2830-2020 | E163: AUXILIAR DE ENFERMERIA URGENCIAS | F163: 01 deJulio de 2020 | G163: 31 de Julio de 2020 | H163: 1653600 | I163: 1653600 | J163: 3432 | K163: 4414 | L163: SERGIO BOVEA MARIN | M163: COORD CENTRO DE SALUD | N163: 2020-07-18 | O163: https://www.contratos.gov.co/consultas/detalleProceso.do?numConstancia=20-4-10936855
A164: 162 | B164: 1042448518 | C164: GIANINA ANDREA GRAVINI DE LA HOZ | D164: 2831-2020 | E164: MEDICO DE URGENCIA | F164: 01 deJulio de 2020 | G164: 31 de Julio de 2020 | H164: 3072000 | I164: 3072000 | J164: 3433 | K164: 4415 | L164: SERGIO BOVEA MARIN | M164: COORD CENTRO DE SALUD | N164: 2020-07-18 | O164: https://www.contratos.gov.co/consultas/detalleProceso.do?numConstancia=20-4-10936858
A165: 163 | B165: 49555306 | C165: GLADYS DIAZ MARIN | D165: 2832-2020 | E165: AUXILIAR DE FACTURACION URGENCIA | F165: 01 deJulio de 2020 | G165: 31 de Julio de 2020 | H165: 1680000 | I165: 1680000 | J165: 3434 | K165: 4416 | L165: SANDRA SANMARTIN | M165: SUBGERENTE ADMINISTRATIVO | N165: 2020-07-18 | O165: https://www.contratos.gov.co/consultas/detalleProceso.do?numConstancia=20-4-10936860
A166: 164 | B166: 1042440903 | C166: HEIDY MARTINEZ GUTIERREZ | D166: 2833-2020 | E166: AUXILIAR DE FACTURACION URGENCIA | F166: 01 deJulio de 2020 | G166: 31 de Julio de 2020 | H166: 1680000 | I166: 1680000 | J166: 3435 | K166: 4417 | L166: SANDRA SANMARTIN | M166: SUBGERENTE ADMINISTRATIVO | N166: 2020-07-18 | O166: https://www.contratos.gov.co/consultas/detalleProceso.do?numConstancia=20-4-10936861
A167: 165 | B167: 32861543 | C167: INGRID NAVARRO CARRILLO | D167: 2834-2020 | E167: FISIOTERAPEUTA | F167: 01 deJulio de 2020 | G167: 31 de Julio de 2020 | H167: 5800000 | I167: 5800000 | J167: 3436 | K167: 4418 | L167: SERGIO BOVEA MARIN | M167: COORD CENTRO DE SALUD | N167: 2020-07-18 | O167: https://www.contratos.gov.co/consultas/detalleProceso.do?numConstancia=20-4-10936863
A168: 166 | B168: 32822389 | C168: ISABEL AMÉRICA DE ALBA RODRIGUEZ | D168: 2835-2020 | E168: AUXILIAR DE FACTURACION | F168: 01 deJulio de 2020 | G168: 31 de Julio de 2020 | H168: 1400000 | I168: 1400000 | J168: 3437 | K168: 4419 | L168: SANDRA SANMARTIN | M168: SUBGERENTE ADMINISTRATIVO | N168: 2020-07-18 | O168: https://www.contratos.gov.co/consultas/detalleProceso.do?numConstancia=20-4-10936864
A169: 167 | B169: 72429926 | C169: JAIRO ESCOBAR ROMERO | D169: 2836-2020 | E169: MEDICO DE URGENCIA | F169: 01 deJulio de 2020 | G169: 31 de Julio de 2020 | H169: 3072000 | I169: 3072000 | J169: 3438 | K169: 4420 | L169: SERGIO BOVEA MARIN | M169: COORD CENTRO DE SALUD | N169: 2020-07-18 | O169: https://www.contratos.gov.co/consultas/detalleProceso.do?numConstancia=20-4-10936865
A170: 168 | B170: 32869709 | C170: JENECIS BARRERA MIRANDA | D170: 2837-2020 | E170: ENFERMERA JEFE DE RUTA INTEGRAL MATERNO PERINATAL | F170: 01 deJulio de 2020 | G170: 31 de Julio de 2020 | H170: 2760000 | I170: 2760000 | J170: 3439 | K170: 4421 | L170: SERGIO BOVEA MARIN | M170: COORD CENTRO DE SALUD | N170: 2020-07-18 | O170: https://www.contratos.gov.co/consultas/detalleProceso.do?numConstancia=20-4-10936867
A171: 169 | B171: 1042444925 | C171: JESUS MORENO DE ALBA | D171: 2838-2020 | E171: AUXILIAR DE FACTURACION URGENCIA | F171: 01 deJulio de 2020 | G171: 31 de Julio de 2020 | H171: 1680000 | I171: 1680000 | J171: 3440 | K171: 4422 | L171: SANDRA SANMARTIN | M171: SUBGERENTE ADMINISTRATIVO | N171: 2020-07-18 | O171: https://www.contratos.gov.co/consultas/detalleProceso.do?numConstancia=20-4-10936871
A172: 170 | B172: 44161544 | C172: JHOANA CATALINA SANDOVAL ESCORCIA | D172: 2839-2020 | E172: ENFERMERA JEFE URGENCIAS | F172: 01 deJulio de 2020 | G172: 31 de Julio de 2020 | H172: 2280000 | I172: 2280000 | J172: 3441 | K172: 4423 | L172: SERGIO BOVEA MARIN | M172: COORD CENTRO DE SALUD | N172: 2020-07-18 | O172: https://www.contratos.gov.co/consultas/detalleProceso.do?numConstancia=20-4-10936872
A173: 171 | B173: 32810582 | C173: JOSEFINA CARO VITOLA | D173: 2840-2020 | E173: AUXILIAR DE ENFERMERIA URGENCIAS | F173: 01 deJulio de 2020 | G173: 31 de Julio de 2020 | H173: 1653600 | I173: 1653600 | J173: 3442 | K173: 4424 | L173: SERGIO BOVEA MARIN | M173: COORD CENTRO DE SALUD | N173: 2020-07-18 | O173: https://www.contratos.gov.co/consultas/detalleProceso.do?numConstancia=20-4-10936874
A174: 172 | B174: 32771594 | C174: JUANA DIAZ CARABALLO | D174: 2841-2020 | E174: AUXILIAR DE ENFERMERIA URGENCIAS | F174: 01 deJulio de 2020 | G174: 31 de Julio de 2020 | H174: 1653600 | I174: 1653600 | J174: 3443 | K174: 4425 | L174: SERGIO BOVEA MARIN | M174: COORD CENTRO DE SALUD | N174: 2020-07-18 | O174: https://www.contratos.gov.co/consultas/detalleProceso.do?numConstancia=20-4-10936875
A175: 173 | B175: 1043841968 | C175: KAREN DAYANA FONSECA MUÑOZ | D175: 2842-2020 | E175: MEDICO DE URGENCIA | F175: 01 deJulio de 2020 | G175: 31 de Julio de 2020 | H175: 3072000 | I175: 3072000 | J175: 3444 | K175: 4426 | L175: SERGIO BOVEA MARIN | M175: COORD CENTRO DE SALUD | N175: 2020-07-18 | O175: https://www.contratos.gov.co/consultas/detalleProceso.do?numConstancia=20-4-10936877
A176: 174 | B176: 55313269 | C176: KAREN MARTINEZ BRANGO | D176: 2843-2020 | E176: AUXILIAR DE ENFERMERIA URGENCIAS | F176: 01 deJulio de 2020 | G176: 31 de Julio de 2020 | H176: 1653600 | I176: 1653600 | J176: 3445 | K176: 4427 | L176: SERGIO BOVEA MARIN | M176: COORD CENTRO DE SALUD | N176: 2020-07-18 | O176: https://www.contratos.gov.co/consultas/detalleProceso.do?numConstancia=20-4-10936878
A177: 175 | B177: 22534402 | C177: KATERINE RUA SUAREZ | D177: 2844-2020 | E177: AUXILIAR DE FACTURACION URGENCIA | F177: 01 deJulio de 2020 | G177: 31 de Julio de 2020 | H177: 1680000 | I177: 1680000 | J177: 3446 | K177: 4428 | L177: SANDRA SANMARTIN | M177: SUBGERENTE ADMINISTRATIVO | N177: 2020-07-18 | O177: https://www.contratos.gov.co/consultas/detalleProceso.do?numConstancia=20-4-10936879
A178: 176 | B178: 1045697885 | C178: LAURA ALANDETE CASTRO | D178: 2845-2020 | E178: MEDICO DE URGENCIA | F178: 01 deJulio de 2020 | G178: 31 de Julio de 2020 | H178: 3072000 | I178: 3072000 | J178: 3447 | K178: 4429 | L178: SERGIO BOVEA MARIN | M178: COORD CENTRO DE SALUD | N178: 2020-07-18 | O178: https://www.contratos.gov.co/consultas/detalleProceso.do?numConstancia=20-4-10936880
A179: 177 | B179: 1045712889 | C179: LEYDILLY ROJANO GOMEZ | D179: 2846-2020 | E179: ENFERMERA JEFE URGENCIAS | F179: 01 deJulio de 2020 | G179: 31 de Julio de 2020 | H179: 2280000 | I179: 2280000 | J179: 3448 | K179: 4430 | L179: SERGIO BOVEA MARIN | M179: COORD CENTRO DE SALUD | N179: 2020-07-18 | O179: https://www.contratos.gov.co/consultas/detalleProceso.do?numConstancia=20-4-10936881
A180: 178 | B180: 22533893 | C180: LILIANA VARGAS MONTERO | D180: 2847-2020 | E180: ENFERMERA JEFE DE PROMOCIÓN Y MANTENIMIENTO DE LA SALUD | F180: 01 deJulio de 2020 | G180: 31 de Julio de 2020 | H180: 2300000 | I180: 2300000 | J180: 3449 | K180: 4431 | L180: SERGIO BOVEA MARIN | M180: COORD CENTRO DE SALUD | N180: 2020-07-18 | O180: https://www.contratos.gov.co/consultas/detalleProceso.do?numConstancia=20-4-10936886
A181: 179 | B181: 1042426533 | C181: LIZ CATERINE ARROYO ROMERO | D181: 2848-2020 | E181: AUXILIAR DE FARMACIA | F181: 01 deJulio de 2020 | G181: 31 de Julio de 2020 | H181: 1524000 | I181: 1524000 | J181: 3450 | K181: 4432 | L181: BETTY PERTUZ | M181: SUBGERENTE CIENTIFICO | N181: 2020-07-18 | O181: https://www.contratos.gov.co/consultas/detalleProceso.do?numConstancia=20-4-10936888
A182: 180 | B182: 8672260 | C182: LUIS MIGUEL REYES LANCE | D182: 2849-2020 | E182: ORIENTADOR | F182: 01 deJulio de 2020 | G182: 31 de Julio de 2020 | H182: 1524000 | I182: 1524000 | J182: 3451 | K182: 4433 | L182: SERGIO BOVEA MARIN | M182: COORD CENTRO DE SALUD | N182: 2020-07-18 | O182: https://www.contratos.gov.co/consultas/detalleProceso.do?numConstancia=20-4-10936890
A183: 181 | B183: 32825666 | C183: LUZ STELLA RUIZ SUAREZ | D183: 2850-2020 | E183: AUXILIAR DE ENFERMERIA DE RUTA INTEGRAL MATERNO PERINATAL | F183: 01 deJulio de 2020 | G183: 31 de Julio de 2020 | H183: 1399200 | I183: 1399200 | J183: 3452 | K183: 4434 | L183: SERGIO BOVEA MARIN | M183: COORD CENTRO DE SALUD | N183: 2020-07-18 | O183: https://www.contratos.gov.co/consultas/detalleProceso.do?numConstancia=20-4-10936893
A184: 182 | B184: 1140849940 | C184: MAICOL JOSE MOLINA SOTO | D184: 2851-2020 | E184: MEDICO DE URGENCIA | F184: 01 deJulio de 2020 | G184: 31 de Julio de 2020 | H184: 3072000 | I184: 3072000 | J184: 3453 | K184: 4435 | L184: SERGIO BOVEA MARIN | M184: COORD CENTRO DE SALUD | N184: 2020-07-18 | O184: https://www.contratos.gov.co/consultas/detalleProceso.do?numConstancia=20-4-10936895
A185: 183 | B185: 22644933 | C185: MARGARITA PACHECO GUTIERREZ | D185: 2852-2020 | E185: HIGIENISTA ORAL | F185: 01 deJulio de 2020 | G185: 31 de Julio de 2020 | H185: 2332000 | I185: 2332000 | J185: 3454 | K185: 4436 | L185: SERGIO BOVEA MARIN | M185: COORD CENTRO DE SALUD | N185: 2020-07-18 | O185: https://www.contratos.gov.co/consultas/detalleProceso.do?numConstancia=20-4-10936897
A186: 184 | B186: 1042450048 | C186: MARIA ALEJANDRA DE LA HOZ TOSCANO | D186: 2853-2020 | E186: MEDICO DE URGENCIA | F186: 01 deJulio de 2020 | G186: 31 de Julio de 2020 | H186: 3072000 | I186: 3072000 | J186: 3455 | K186: 4437 | L186: SERGIO BOVEA MARIN | M186: COORD CENTRO DE SALUD | N186: 2020-07-18 | O186: https://www.contratos.gov.co/consultas/detalleProceso.do?numConstancia=20-4-10936898
A187: 185 | B187: 1004093696 | C187: MARIA ALTAMAR OROZCO | D187: 2854-2020 | E187: AUXILIAR DE ENFERMERIA URGENCIAS | F187: 01 deJulio de 2020 | G187: 31 de Julio de 2020 | H187: 1653600 | I187: 1653600 | J187: 3456 | K187: 4438 | L187: SERGIO BOVEA MARIN | M187: COORD CENTRO DE SALUD | N187: 2020-07-18 | O187: https://www.contratos.gov.co/consultas/detalleProceso.do?numConstancia=20-4-10936899
A188: 186 | B188: 32789239 | C188: MARIA DEL CARMEN GUERRERO OJEDA | D188: 2855-2020 | E188: ORIENTADOR | F188: 01 deJulio de 2020 | G188: 31 de Julio de 2020 | H188: 1524000 | I188: 1524000 | J188: 3457 | K188: 4439 | L188: SERGIO BOVEA MARIN | M188: COORD CENTRO DE SALUD | N188: 2020-07-18 | O188: https://www.contratos.gov.co/consultas/detalleProceso.do?numConstancia=20-4-10936900
A189: 187 | B189: 1129572439 | C189: SHIRLEY CONSUEGRA OLAYA | D189: 2856-2020 | E189: REFERENCIA Y CONTRAREFERENCIA | F189: 01 deJulio de 2020 | G189: 31 de Julio de 2020 | H189: 1524000 | I189: 1524000 | J189: 3458 | K189: 4440 | L189: SERGIO BOVEA MARIN | M189: COORD CENTRO DE SALUD | N189: 2020-07-18 | O189: https://www.contratos.gov.co/consultas/detalleProceso.do?numConstancia=20-4-10936901
A190: 188 | B190: 32879250 | C190: MARIA SEGURA MEJIA | D190: 2857-2020 | E190: AUXILIAR FACTURACION URGENCIA | F190: 01 deJulio de 2020 | G190: 31 de Julio de 2020 | H190: 1680000 | I190: 1680000 | J190: 3459 | K190: 4441 | L190: SANDRA SANMARTIN | M190: SUBGERENTE ADMINISTRATIVO | N190: 2020-07-18 | O190: https://www.contratos.gov.co/consultas/detalleProceso.do?numConstancia=20-4-10936902
A191: 189 | B191: 72158729 | C191: MARLON CAMILO JORDAN HERRERA | D191: 2858-2020 | E191: REFERENCIA Y CONTRAREFERENCIA | F191: 01 deJulio de 2020 | G191: 31 de Julio de 2020 | H191: 1776000 | I191: 1776000 | J191: 3460 | K191: 4442 | L191: SERGIO BOVEA MARIN | M191: COORD CENTRO DE SALUD | N191: 2020-07-18 | O191: https://www.contratos.gov.co/consultas/detalleProceso.do?numConstancia=20-4-10936904
A192: 190 | B192: 22457575 | C192: MELBA MEZA PERDOMO | D192: 2859-2020 | E192: TRABAJADORA SOCIAL | F192: 01 deJulio de 2020 | G192: 31 de Julio de 2020 | H192: 2200000 | I192: 2200000 | J192: 3461 | K192: 4443 | L192: SERGIO BOVEA MARIN | M192: COORD CENTRO DE SALUD | N192: 2020-07-18 | O192: https://www.contratos.gov.co/consultas/detalleProceso.do?numConstancia=20-4-10936905
A193: 191 | B193: 8507626 | C193: MIGUEL ALVAREZ SALCEDO | D193: 2860-2020 | E193: CONDUCTOR DE AMBULANCIA | F193: 01 deJulio de 2020 | G193: 31 de Julio de 2020 | H193: 2160000 | I193: 2160000 | J193: 3462 | K193: 4444 | L193: BETTY PERTUZ | M193: SUBGERENTE CIENTIFICO | N193: 2020-07-18 | O193: https://www.contratos.gov.co/consultas/detalleProceso.do?numConstancia=20-4-10936906
A194: 192 | B194: 32829349 | C194: NADIA BOVEA NIETO | D194: 2861-2020 | E194: AUXILIAR DE ENFERMERIA URGENCIAS | F194: 01 deJulio de 2020 | G194: 31 de Julio de 2020 | H194: 1653600 | I194: =+H194*1 -> 1653600 | J194: 3463 | K194: 4445 | L194: SERGIO BOVEA MARIN | M194: COORD CENTRO DE SALUD | N194: 2020-07-18 | O194: https://www.contratos.gov.co/consultas/detalleProceso.do?numConstancia=20-4-10936907
A195: 193 | B195: 55307414 | C195: NATALY DE LAS SALAS ORTEGA | D195: 2862-2020 | E195: PSICOLOGA | F195: 01 deJulio de 2020 | G195: 31 de Julio de 2020 | H195: 3000000 | I195: 3000000 | J195: 3464 | K195: 4446 | L195: BETTY PERTUZ | M195: SUBGERENTE CIENTIFICO | N195: 2020-07-18 | O195: https://www.contratos.gov.co/consultas/detalleProceso.do?numConstancia=20-4-10936908
A196: =+A195+1 -> 194 | B196: 32783935 | C196: NELBY CORRALES HOYOS | D196: 2863-2020 | E196: AUXILIAR DE ENFERMERIA URGENCIAS | F196: 01 deJulio de 2020 | G196: 31 de Julio de 2020 | H196: 1653600 | I196: 1653600 | J196: 3465 | K196: 4447 | L196: SERGIO BOVEA MARIN | M196: COORD CENTRO DE SALUD | N196: 2020-07-18 | O196: https://www.contratos.gov.co/consultas/detalleProceso.do?numConstancia=20-4-10936910
A197: 195 | B197: 32819548 | C197: NELLY GALAN HEILBRON | D197: 2864-2020 | E197: AUXILIAR DE ENFERMERIA PROMOTORA EN SALUD | F197: 01 deJulio de 2020 | G197: 31 de Julio de 2020 | H197: 1215000 | I197: 1215000 | J197: 3466 | K197: 4448 | L197: SERGIO BOVEA MARIN | M197: COORD CENTRO DE SALUD | N197: 2020-07-18 | O197: https://www.contratos.gov.co/consultas/detalleProceso.do?numConstancia=20-4-10936911
A198: 196 | B198: 72222215 | C198: NILSON ALMARALES GARIZABALO | D198: 2865-2020 | E198: MEDICO MATERNIDAD SEGURA Y URGENCIA | F198: 01 deJulio de 2020 | G198: 31 de Julio de 2020 | H198: 6212000 | I198: 6212000 | J198: 3467 | K198: 4449 | L198: SERGIO BOVEA MARIN | M198: COORD CENTRO DE SALUD | N198: 2020-07-18 | O198: https://www.contratos.gov.co/consultas/detalleProceso.do?numConstancia=20-4-10936914
A199: 197 | B199: 22646712 | C199: NINI JOHANA SOLANO MORENO | D199: 2866-2020 | E199: ENFERMERA JEFE URGENCIAS | F199: 01 deJulio de 2020 | G199: 31 de Julio de 2020 | H199: 2280000 | I199: 2280000 | J199: 3468 | K199: 4450 | L199: SERGIO BOVEA MARIN | M199: COORD CENTRO DE SALUD | N199: 2020-07-18 | O199: https://www.contratos.gov.co/consultas/detalleProceso.do?numConstancia=20-4-10936916
A200: 198 | B200: 22564359 | C200: NINI JOHANNA QUIROZ SANTOS | D200: 2867-2020 | E200: MEDICO DE URGENCIA | F200: 01 deJulio de 2020 | G200: 31 de Julio de 2020 | H200: 3072000 | I200: 3072000 | J200: 3469 | K200: 4451 | L200: SERGIO BOVEA MARIN | M200: COORD CENTRO DE SALUD | N200: 2020-07-18 | O200: https://www.contratos.gov.co/consultas/detalleProceso.do?numConstancia=20-4-10936917
... 275 more rows

Sheet PIC JULIO 2020
A1: CEDULA | B1: NOMBRE Y APELLIDO | C1: #OPS AÑO | D1: OBJETO DEL CONTRATO | E1: FECHA INICIO | F1: FECHA TERMINACION | G1: VALOR MENSUAL | H1: VALOR TOTAL | I1: SUPERVISOR | J1: CARGO | K1: RUBRO PRESUPUESTAL | L1: CDP | M1: RP | N1: FECHA SECOP | O1: LINK SECOP
A2: 22668428 | B2: ANABELL VELASQUEZ FERNANDEZ | C2: 212-2020 -PIC | D2: COORDINADORA PIC | E2: 01 julio de 2020 | F2: 31 de Julio de 2020 | G2: 5800000 | H2: =G2*1 -> 5800000 | I2: BETTY PERTUZ | J2: SUBGERENTE CIENTIFICO | K2: PIC | L2: =VLOOKUP(A2:A36,'[1]PIC JULIO 2020'!$A$2:$O$40,15,0) -> 3737 | M2: =VLOOKUP(A2:A36,'[1]PIC JULIO 2020'!$A$2:$P$37,16,0) -> 4719 | N2: =VLOOKUP(A2:A37,'[2]PIC JULIO 2020'!$A$2:$Q$40,17,0) -> 2020-07-20 | O2: https://www.contratos.gov.co/consultas/detalleProceso.do?numConstancia=20-4-10938613
A3: 32874188 | B3: JALICSSA ARRIETA ORTEGA | C3: 213-2020 -PIC | D3: APOYO GESTION PIC | E3: 01 julio de 2020 | F3: 31 de Julio de 2020 | G3: 3500000 | H3: =G3*1 -> 3500000 | I3: ANABELL VELASQUEZ | J3: COORDINADORA PIC | K3: PIC | L3: =VLOOKUP(A3:A37,'[1]PIC JULIO 2020'!$A$2:$O$40,15,0) -> 3738 | M3: =VLOOKUP(A3:A37,'[1]PIC JULIO 2020'!$A$2:$P$37,16,0) -> 4720 | N3: =VLOOKUP(A3:A37,'[2]PIC JULIO 2020'!$A$2:$Q$40,17,0) -> 2020-07-20 | O3: https://www.contratos.gov.co/consultas/detalleProceso.do?numConstancia=20-4-10938614
A4: 32744712 | B4: CARMEN MARIA CORONADO ESCORCIA | C4: 214-2020 -PIC | D4: ENFERMERA JEFE -PIC | E4: 01 julio de 2020 | F4: 31 de Julio de 2020 | G4: 2500000 | H4: 2500000 | I4: ANABELL VELASQUEZ | J4: COORDINADORA PIC | K4: PIC | L4: =VLOOKUP(A4:A37,'[1]PIC JULIO 2020'!$A$2:$O$40,15,0) -> 3739 | M4: =VLOOKUP(A4:A37,'[1]PIC JULIO 2020'!$A$2:$P$37,16,0) -> 4721 | N4: =VLOOKUP(A4:A37,'[2]PIC JULIO 2020'!$A$2:$Q$40,17,0) -> 2020-07-20 | O4: https://www.contratos.gov.co/consultas/detalleProceso.do?numConstancia=20-4-10938615
A5: 22506781 | B5: MILDRED TATIANA GOENAGA ALVARADO | C5: 215-2020 -PIC | D5: ENFERMERA JEFE VACUNACION | E5: 01 julio de 2020 | F5: 31 de Julio de 2020 | G5: 2500000 | H5: 2500000 | I5: ANABELL VELASQUEZ | J5: COORDINADORA PIC | K5: PIC | L5: =VLOOKUP(A5:A37,'[1]PIC JULIO 2020'!$A$2:$O$40,15,0) -> 3740 | M5: =VLOOKUP(A5:A37,'[1]PIC JULIO 2020'!$A$2:$P$37,16,0) -> 4722 | N5: =VLOOKUP(A5:A37,'[2]PIC JULIO 2020'!$A$2:$Q$40,17,0) -> 2020-07-20 | O5: https://www.contratos.gov.co/consultas/detalleProceso.do?numConstancia=20-4-10938616
A6: 22645320 | B6: ADRIANA CRISTINA GARCIA CARRILLO | C6: 216-2020 -PIC | D6: FISIOTERAPEUTA | E6: 01 julio de 2020 | F6: 31 de Julio de 2020 | G6: 2500000 | H6: 2500000 | I6: ANABELL VELASQUEZ | J6: COORDINADORA PIC | K6: PIC | L6: =VLOOKUP(A6:A37,'[1]PIC JULIO 2020'!$A$2:$O$40,15,0) -> 3741 | M6: =VLOOKUP(A6:A37,'[1]PIC JULIO 2020'!$A$2:$P$37,16,0) -> 4723 | N6: =VLOOKUP(A6:A37,'[2]PIC JULIO 2020'!$A$2:$Q$40,17,0) -> 2020-07-20 | O6: https://www.contratos.gov.co/consultas/detalleProceso.do?numConstancia=20-4-10938617
A7: 32777087 | B7: ROSA MARGARITA SEVILLA | C7: 217-2020 -PIC | D7: NUTRICIONISTA | E7: 01 julio de 2020 | F7: 31 de Julio de 2020 | G7: 2500000 | H7: 2500000 | I7: ANABELL VELASQUEZ | J7: COORDINADORA PIC | K7: PIC | L7: =VLOOKUP(A7:A37,'[1]PIC JULIO 2020'!$A$2:$O$40,15,0) -> 3742 | M7: =VLOOKUP(A7:A37,'[1]PIC JULIO 2020'!$A$2:$P$37,16,0) -> 4724 | N7: =VLOOKUP(A7:A37,'[2]PIC JULIO 2020'!$A$2:$Q$40,17,0) -> 2020-07-20 | O7: https://www.contratos.gov.co/consultas/detalleProceso.do?numConstancia=20-4-10938618
A8: 1065575009 | B8: ANDREA TATIANA SERRANO MOLINA | C8: 218-2020 -PIC | D8: PSICOLOGO | E8: 01 julio de 2020 | F8: 31 de Julio de 2020 | G8: 2500000 | H8: 2500000 | I8: ANABELL VELASQUEZ | J8: COORDINADORA PIC | K8: PIC | L8: =VLOOKUP(A8:A37,'[1]PIC JULIO 2020'!$A$2:$O$40,15,0) -> 3743 | M8: =VLOOKUP(A8:A37,'[1]PIC JULIO 2020'!$A$2:$P$37,16,0) -> 4725 | N8: =VLOOKUP(A8:A37,'[2]PIC JULIO 2020'!$A$2:$Q$40,17,0) -> 2020-07-20 | O8: https://www.contratos.gov.co/consultas/detalleProceso.do?numConstancia=20-4-10938619
A9: 22617307 | B9: ETILVIA TERESA DONADO CABALLERO | C9: 219-2020 -PIC | D9: PSICOLOGO | E9: 01 julio de 2020 | F9: 31 de Julio de 2020 | G9: 2500000 | H9: 2500000 | I9: ANABELL VELASQUEZ | J9: COORDINADORA PIC | K9: PIC | L9: =VLOOKUP(A9:A37,'[1]PIC JULIO 2020'!$A$2:$O$40,15,0) -> 3744 | M9: =VLOOKUP(A9:A37,'[1]PIC JULIO 2020'!$A$2:$P$37,16,0) -> 4726 | N9: =VLOOKUP(A9:A37,'[2]PIC JULIO 2020'!$A$2:$Q$40,17,0) -> 2020-07-20 | O9: https://www.contratos.gov.co/consultas/detalleProceso.do?numConstancia=20-4-10938620
A10: 1140873504 | B10: OLMAN JOSHUA BULA TORRES | C10: 220-2020 -PIC | D10: PSICOLOGO | E10: 01 julio de 2020 | F10: 31 de Julio de 2020 | G10: 2500000 | H10: 2500000 | I10: ANABELL VELASQUEZ | J10: COORDINADORA PIC | K10: PIC | L10: =VLOOKUP(A10:A37,'[1]PIC JULIO 2020'!$A$2:$O$40,15,0) -> 3745 | M10: =VLOOKUP(A10:A37,'[1]PIC JULIO 2020'!$A$2:$P$37,16,0) -> 4727 | N10: =VLOOKUP(A10:A37,'[2]PIC JULIO 2020'!$A$2:$Q$40,17,0) -> 2020-07-20 | O10: https://www.contratos.gov.co/consultas/detalleProceso.do?numConstancia=20-4-10938621
A11: 1046872703 | B11: LUCELIS DE LA HOZ ESCORCIA | C11: 221-2020 -PIC | D11: AUXILIAR ADMINISTRATIVO-PIC | E11: 01 julio de 2020 | F11: 31 de Julio de 2020 | G11: 1900000 | H11: 1900000 | I11: ANABELL VELASQUEZ | J11: COORDINADORA PIC | K11: PIC | L11: =VLOOKUP(A11:A37,'[1]PIC JULIO 2020'!$A$2:$O$40,15,0) -> 3746 | M11: =VLOOKUP(A11:A37,'[1]PIC JULIO 2020'!$A$2:$P$37,16,0) -> 4728 | N11: =VLOOKUP(A11:A37,'[2]PIC JULIO 2020'!$A$2:$Q$40,17,0) -> 2020-07-20 | O11: https://www.contratos.gov.co/consultas/detalleProceso.do?numConstancia=20-4-10938623
A12: 72429089 | B12: EDER DE JESUS SEGURA BRAVO | C12: 222-2020 -PIC | D12: HIGIENISTA ORAL | E12: 01 julio de 2020 | F12: 31 de Julio de 2020 | G12: 1900000 | H12: 1900000 | I12: ANABELL VELASQUEZ | J12: COORDINADORA PIC | K12: PIC | L12: =VLOOKUP(A12:A37,'[1]PIC JULIO 2020'!$A$2:$O$40,15,0) -> 3747 | M12: =VLOOKUP(A12:A37,'[1]PIC JULIO 2020'!$A$2:$P$37,16,0) -> 4729 | N12: =VLOOKUP(A12:A37,'[2]PIC JULIO 2020'!$A$2:$Q$40,17,0) -> 2020-07-20 | O12: https://www.contratos.gov.co/consultas/detalleProceso.do?numConstancia=20-4-10938624
A13: 72271553 | B13: DAVID ENRIQUE AGRESOT DE LA CRUZ | C13: 223-2020 -PIC | D13: LIDER DE ZOONOSIS | E13: 01 julio de 2020 | F13: 31 de Julio de 2020 | G13: 1900000 | H13: 1900000 | I13: ANABELL VELASQUEZ | J13: COORDINADORA PIC | K13: PIC | L13: =VLOOKUP(A13:A37,'[1]PIC JULIO 2020'!$A$2:$O$40,15,0) -> 3748 | M13: =VLOOKUP(A13:A37,'[1]PIC JULIO 2020'!$A$2:$P$37,16,0) -> 4730 | N13: =VLOOKUP(A13:A37,'[2]PIC JULIO 2020'!$A$2:$Q$40,17,0) -> 2020-07-20 | O13: https://www.contratos.gov.co/consultas/detalleProceso.do?numConstancia=20-4-10938625
A14: 32876278 | B14: CLAUDIA MARTINEZ RIVAS | C14: 224-2020 -PIC | D14: AGENTE PRIMARIA EN SALUD-APS | E14: 01 julio de 2020 | F14: 31 de Julio de 2020 | G14: 1400000 | H14: 1400000 | I14: ANABELL VELASQUEZ | J14: COORDINADORA PIC | K14: PIC | L14: =VLOOKUP(A14:A37,'[1]PIC JULIO 2020'!$A$2:$O$40,15,0) -> 3749 | M14: =VLOOKUP(A14:A37,'[1]PIC JULIO 2020'!$A$2:$P$37,16,0) -> 4731 | N14: =VLOOKUP(A14:A37,'[2]PIC JULIO 2020'!$A$2:$Q$40,17,0) -> 2020-07-20 | O14: https://www.contratos.gov.co/consultas/detalleProceso.do?numConstancia=20-4-10938627
A15: 1143136225 | B15: MARTA CECILIA MARIN ZAPATA | C15: 225-2020 -PIC | D15: AGENTE PRIMARIA EN SALUD-APS | E15: 01 julio de 2020 | F15: 31 de Julio de 2020 | G15: 1400000 | H15: 1400000 | I15: ANABELL VELASQUEZ | J15: COORDINADORA PIC | K15: PIC | L15: =VLOOKUP(A15:A37,'[1]PIC JULIO 2020'!$A$2:$O$40,15,0) -> 3750 | M15: =VLOOKUP(A15:A37,'[1]PIC JULIO 2020'!$A$2:$P$37,16,0) -> 4732 | N15: =VLOOKUP(A15:A37,'[2]PIC JULIO 2020'!$A$2:$Q$40,17,0) -> 2020-07-20 | O15: https://www.contratos.gov.co/consultas/detalleProceso.do?numConstancia=20-4-10938629
A16: 1043931882 | B16: AREIDIS MEDINA SANJUAN | C16: 226-2020 -PIC | D16: AGENTE PRIMARIA EN SALUD-APS | E16: 01 julio de 2020 | F16: 31 de Julio de 2020 | G16: 1400000 | H16: 1400000 | I16: ANABELL VELASQUEZ | J16: COORDINADORA PIC | K16: PIC | L16: =VLOOKUP(A16:A37,'[1]PIC JULIO 2020'!$A$2:$O$40,15,0) -> 3751 | M16: =VLOOKUP(A16:A37,'[1]PIC JULIO 2020'!$A$2:$P$37,16,0) -> 4733 | N16: =VLOOKUP(A16:A37,'[2]PIC JULIO 2020'!$A$2:$Q$40,17,0) -> 2020-07-20 | O16: https://www.contratos.gov.co/consultas/detalleProceso.do?numConstancia=20-4-10938630
A17: 22543666 | B17: DENNYS MARIELA ARZUZAR GALVIS | C17: 227-2020 -PIC | D17: AGENTE PRIMARIA EN SALUD-APS | E17: 01 julio de 2020 | F17: 31 de Julio de 2020 | G17: 1400000 | H17: 1400000 | I17: ANABELL VELASQUEZ | J17: COORDINADORA PIC | K17: PIC | L17: =VLOOKUP(A17:A37,'[1]PIC JULIO 2020'!$A$2:$O$40,15,0) -> 3752 | M17: =VLOOKUP(A17:A37,'[1]PIC JULIO 2020'!$A$2:$P$37,16,0) -> 4734 | N17: =VLOOKUP(A17:A37,'[2]PIC JULIO 2020'!$A$2:$Q$40,17,0) -> 2020-07-20 | O17: https://www.contratos.gov.co/consultas/detalleProceso.do?numConstancia=20-4-10938631
A18: 44160070 | B18: GLORIA ZAPATA REZA | C18: 228-2020 -PIC | D18: AGENTE PRIMARIA EN SALUD-APS | E18: 01 julio de 2020 | F18: 31 de Julio de 2020 | G18: 1400000 | H18: 1400000 | I18: ANABELL VELASQUEZ | J18: COORDINADORA PIC | K18: PIC | L18: =VLOOKUP(A18:A37,'[1]PIC JULIO 2020'!$A$2:$O$40,15,0) -> 3753 | M18: =VLOOKUP(A18:A37,'[1]PIC JULIO 2020'!$A$2:$P$37,16,0) -> 4735 | N18: =VLOOKUP(A18:A37,'[2]PIC JULIO 2020'!$A$2:$Q$40,17,0) -> 2020-07-20 | O18: https://www.contratos.gov.co/consultas/detalleProceso.do?numConstancia=20-4-10938633
A19: 44152281 | B19: KAREN JOHANA JIMENEZ RAMOS | C19: 229-2020 -PIC | D19: AGENTE PRIMARIA EN SALUD-APS | E19: 01 julio de 2020 | F19: 31 de Julio de 2020 | G19: 1400000 | H19: 1400000 | I19: ANABELL VELASQUEZ | J19: COORDINADORA PIC | K19: PIC | L19: =VLOOKUP(A19:A37,'[1]PIC JULIO 2020'!$A$2:$O$40,15,0) -> 3754 | M19: =VLOOKUP(A19:A37,'[1]PIC JULIO 2020'!$A$2:$P$37,16,0) -> 4736 | N19: =VLOOKUP(A19:A37,'[2]PIC JULIO 2020'!$A$2:$Q$40,17,0) -> 2020-07-20 | O19: https://www.contratos.gov.co/consultas/detalleProceso.do?numConstancia=20-4-10938634
A20: 44150081 | B20: MARY LUZ GUERRERO CERVANTES | C20: 230-2020 -PIC | D20: AGENTE PRIMARIA EN SALUD-APS | E20: 01 julio de 2020 | F20: 31 de Julio de 2020 | G20: 1400000 | H20: 1400000 | I20: ANABELL VELASQUEZ | J20: COORDINADORA PIC | K20: PIC | L20: =VLOOKUP(A20:A37,'[1]PIC JULIO 2020'!$A$2:$O$40,15,0) -> 3755 | M20: =VLOOKUP(A20:A37,'[1]PIC JULIO 2020'!$A$2:$P$37,16,0) -> 4737 | N20: =VLOOKUP(A20:A37,'[2]PIC JULIO 2020'!$A$2:$Q$40,17,0) -> 2020-07-20 | O20: https://www.contratos.gov.co/consultas/detalleProceso.do?numConstancia=20-4-10938635
A21: 1002162856 | B21: NICOLL PATRICIA NIEBLES RIVERA | C21: 231-2020 -PIC | D21: AGENTE PRIMARIA EN SALUD-APS | E21: 01 julio de 2020 | F21: 31 de Julio de 2020 | G21: 1400000 | H21: 1400000 | I21: ANABELL VELASQUEZ | J21: COORDINADORA PIC | K21: PIC | L21: =VLOOKUP(A21:A37,'[1]PIC JULIO 2020'!$A$2:$O$40,15,0) -> 3756 | M21: =VLOOKUP(A21:A37,'[1]PIC JULIO 2020'!$A$2:$P$37,16,0) -> 4738 | N21: =VLOOKUP(A21:A37,'[2]PIC JULIO 2020'!$A$2:$Q$40,17,0) -> 2020-07-20 | O21: https://www.contratos.gov.co/consultas/detalleProceso.do?numConstancia=20-4-10938636
A22: 32758730 | B22: NUBIA ESTELA CANO GUILLEN | C22: 232-2020 -PIC | D22: AGENTE PRIMARIA EN SALUD-APS | E22: 01 julio de 2020 | F22: 31 de Julio de 2020 | G22: 1400000 | H22: 1400000 | I22: ANABELL VELASQUEZ | J22: COORDINADORA PIC | K22: PIC | L22: =VLOOKUP(A22:A37,'[1]PIC JULIO 2020'!$A$2:$O$40,15,0) -> 3757 | M22: =VLOOKUP(A22:A37,'[1]PIC JULIO 2020'!$A$2:$P$37,16,0) -> 4739 | N22: =VLOOKUP(A22:A37,'[2]PIC JULIO 2020'!$A$2:$Q$40,17,0) -> 2020-07-20 | O22: https://www.contratos.gov.co/consultas/detalleProceso.do?numConstancia=20-4-10938638
A23: 1042449446 | B23: SAILIS MARIA FRIA VEGA | C23: 233-2020 -PIC | D23: AGENTE PRIMARIA EN SALUD-APS | E23: 01 julio de 2020 | F23: 31 de Julio de 2020 | G23: 1400000 | H23: 1400000 | I23: ANABELL VELASQUEZ | J23: COORDINADORA PIC | K23: PIC | L23: =VLOOKUP(A23:A37,'[1]PIC JULIO 2020'!$A$2:$O$40,15,0) -> 3758 | M23: =VLOOKUP(A23:A37,'[1]PIC JULIO 2020'!$A$2:$P$37,16,0) -> 4740 | N23: =VLOOKUP(A23:A37,'[2]PIC JULIO 2020'!$A$2:$Q$40,17,0) -> 2020-07-20 | O23: https://www.contratos.gov.co/consultas/detalleProceso.do?numConstancia=20-4-10938639
A24: 1047337919 | B24: CANDY ISABEL ROJAS SARMIENTO | C24: 234-2020 -PIC | D24: AGENTE PRIMARIA EN SALUD-ZOONOSIS | E24: 01 julio de 2020 | F24: 31 de Julio de 2020 | G24: 1400000 | H24: 1400000 | I24: ANABELL VELASQUEZ | J24: COORDINADORA PIC | K24: PIC | L24: =VLOOKUP(A24:A37,'[1]PIC JULIO 2020'!$A$2:$O$40,15,0) -> 3759 | M24: =VLOOKUP(A24:A37,'[1]PIC JULIO 2020'!$A$2:$P$37,16,0) -> 4741 | N24: =VLOOKUP(A24:A37,'[2]PIC JULIO 2020'!$A$2:$Q$40,17,0) -> 2020-07-20 | O24: https://www.contratos.gov.co/consultas/detalleProceso.do?numConstancia=20-4-10938640
A25: 8784783 | B25: DAIRO MANRIQUEZ MORALES BOVEA | C25: 235-2020 -PIC | D25: AGENTE PRIMARIA EN SALUD-ZOONOSIS | E25: 01 julio de 2020 | F25: 31 de Julio de 2020 | G25: 1400000 | H25: 1400000 | I25: ANABELL VELASQUEZ | J25: COORDINADORA PIC | K25: PIC | L25: =VLOOKUP(A25:A37,'[1]PIC JULIO 2020'!$A$2:$O$40,15,0) -> 3760 | M25: =VLOOKUP(A25:A37,'[1]PIC JULIO 2020'!$A$2:$P$37,16,0) -> 4742 | N25: =VLOOKUP(A25:A37,'[2]PIC JULIO 2020'!$A$2:$Q$40,17,0) -> 2020-07-20 | O25: https://www.contratos.gov.co/consultas/detalleProceso.do?numConstancia=20-4-10938641
A26: 32829868 | B26: JUDITH ISABEL ARCON MEDINA | C26: 236-2020 -PIC | D26: AGENTE PRIMARIA EN SALUD-ZOONOSIS | E26: 01 julio de 2020 | F26: 31 de Julio de 2020 | G26: 1400000 | H26: 1400000 | I26: ANABELL VELASQUEZ | J26: COORDINADORA PIC | K26: PIC | L26: =VLOOKUP(A26:A37,'[1]PIC JULIO 2020'!$A$2:$O$40,15,0) -> 3761 | M26: =VLOOKUP(A26:A37,'[1]PIC JULIO 2020'!$A$2:$P$37,16,0) -> 4743 | N26: =VLOOKUP(A26:A37,'[2]PIC JULIO 2020'!$A$2:$Q$40,17,0) -> 2020-07-20 | O26: https://www.contratos.gov.co/consultas/detalleProceso.do?numConstancia=20-4-10938642
A27: 1046698080 | B27: LUIS ALFREDO CANTILLO CABALLERO | C27: 237-2020 -PIC | D27: AGENTE PRIMARIA EN SALUD-ZOONOSIS | E27: 01 julio de 2020 | F27: 31 de Julio de 2020 | G27: 1400000 | H27: 1400000 | I27: ANABELL VELASQUEZ | J27: COORDINADORA PIC | K27: PIC | L27: =VLOOKUP(A27:A37,'[1]PIC JULIO 2020'!$A$2:$O$40,15,0) -> 3762 | M27: =VLOOKUP(A27:A37,'[1]PIC JULIO 2020'!$A$2:$P$37,16,0) -> 4744 | N27: =VLOOKUP(A27:A37,'[2]PIC JULIO 2020'!$A$2:$Q$40,17,0) -> 2020-07-20 | O27: https://www.contratos.gov.co/consultas/detalleProceso.do?numConstancia=20-4-10938643
A28: 30895455 | B28: MARIA CONCEPCION ESPRIELLA BUELVAS | C28: 239-2020 -PIC | D28: AGENTE PRIMARIA EN SALUD-ZOONOSIS | E28: 01 julio de 2020 | F28: 31 de Julio de 2020 | G28: 1400000 | H28: 1400000 | I28: ANABELL VELASQUEZ | J28: COORDINADORA PIC | K28: PIC | L28: =VLOOKUP(A28:A37,'[1]PIC JULIO 2020'!$A$2:$O$40,15,0) -> 3764 | M28: =VLOOKUP(A28:A37,'[1]PIC JULIO 2020'!$A$2:$P$37,16,0) -> 4746 | N28: =VLOOKUP(A28:A37,'[2]PIC JULIO 2020'!$A$2:$Q$40,17,0) -> 2020-07-20 | O28: https://www.contratos.gov.co/consultas/detalleProceso.do?numConstancia=20-4-10938647
A29: 1143442239 | B29: SAYURIS OCAMPO GARCIA | C29: 240-2020 -PIC | D29: AGENTE PRIMARIA EN SALUD-ZOONOSIS | E29: 01 julio de 2020 | F29: 31 de Julio de 2020 | G29: 1400000 | H29: 1400000 | I29: ANABELL VELASQUEZ | J29: COORDINADORA PIC | K29: PIC | L29: =VLOOKUP(A29:A37,'[1]PIC JULIO 2020'!$A$2:$O$40,15,0) -> 3765 | M29: =VLOOKUP(A29:A37,'[1]PIC JULIO 2020'!$A$2:$P$37,16,0) -> 4747 | N29: =VLOOKUP(A29:A37,'[2]PIC JULIO 2020'!$A$2:$Q$40,17,0) -> 2020-07-20 | O29: https://www.contratos.gov.co/consultas/detalleProceso.do?numConstancia=20-4-10938648
A30: 32872420 | B30: LUZ MARINA GARIZAO TAPIA | C30: 241-2020 -PIC | D30: AGENTE PRIMARIA EN SALUD-ZOONOSIS | E30: 01 julio de 2020 | F30: 31 de Julio de 2020 | G30: 1400000 | H30: 1400000 | I30: ANABELL VELASQUEZ | J30: COORDINADORA PIC | K30: PIC | L30: =VLOOKUP(A30:A37,'[1]PIC JULIO 2020'!$A$2:$O$40,15,0) -> 3766 | M30: =VLOOKUP(A30:A37,'[1]PIC JULIO 2020'!$A$2:$P$37,16,0) -> 4748 | N30: =VLOOKUP(A30:A37,'[2]PIC JULIO 2020'!$A$2:$Q$40,17,0) -> 2020-07-20 | O30: https://www.contratos.gov.co/consultas/detalleProceso.do?numConstancia=20-4-10938649
A31: 1042417608 | B31: KELLY DEL CARMEN PARDO RODRIGUEZ | C31: 242-2020 -PIC | D31: AUXILIAR DE ENFERMERIA - VACUNACION | E31: 01 julio de 2020 | F31: 31 de Julio de 2020 | G31: 1400000 | H31: 1400000 | I31: ANABELL VELASQUEZ | J31: COORDINADORA PIC | K31: PIC | L31: =VLOOKUP(A31:A37,'[1]PIC JULIO 2020'!$A$2:$O$40,15,0) -> 3767 | M31: =VLOOKUP(A31:A37,'[1]PIC JULIO 2020'!$A$2:$P$37,16,0) -> 4749 | N31: =VLOOKUP(A31:A37,'[2]PIC JULIO 2020'!$A$2:$Q$40,17,0) -> 2020-07-20 | O31: https://www.contratos.gov.co/consultas/detalleProceso.do?numConstancia=20-4-10938650
A32: 32810003 | B32: DALGIS ESTHER BADILLO FONTALVO | C32: 243-2020 -PIC | D32: AGENTE PRIMARIA EN SALUD-ZOONOSIS | E32: 01 julio de 2020 | F32: 31 de Julio de 2020 | G32: 1400000 | H32: 1400000 | I32: ANABELL VELASQUEZ | J32: COORDINADORA PIC | K32: PIC | L32: =VLOOKUP(A32:A37,'[1]PIC JULIO 2020'!$A$2:$O$40,15,0) -> 3768 | M32: =VLOOKUP(A32:A37,'[1]PIC JULIO 2020'!$A$2:$P$37,16,0) -> 4750 | N32: =VLOOKUP(A32:A37,'[2]PIC JULIO 2020'!$A$2:$Q$40,17,0) -> 2020-07-20 | O32: https://www.contratos.gov.co/consultas/detalleProceso.do?numConstancia=20-4-10938651
A33: 8773147 | B33: DANILO FABIO VELILLA MERCADO | C33: 244-2020 -PIC | D33: =+D32 -> AGENTE PRIMARIA EN SALUD-ZOONOSIS | E33: 01 julio de 2020 | F33: 31 de Julio de 2020 | G33: 1400000 | H33: 1400000 | I33: ANABELL VELASQUEZ | J33: COORDINADORA PIC | K33: PIC | L33: =VLOOKUP(A33:A37,'[1]PIC JULIO 2020'!$A$2:$O$40,15,0) -> 3769 | M33: =VLOOKUP(A33:A37,'[1]PIC JULIO 2020'!$A$2:$P$37,16,0) -> 4751 | N33: =VLOOKUP(A33:A37,'[2]PIC JULIO 2020'!$A$2:$Q$40,17,0) -> 2020-07-20 | O33: https://www.contratos.gov.co/consultas/detalleProceso.do?numConstancia=20-4-10938652
A34: 1140814733 | B34: KATHERINE PATRICIA URUETA VERGARA | C34: 245-2020 -PIC | D34: LIDER APS | E34: 01 julio de 2020 | F34: 31 de Julio de 2020 | G34: 2500000 | H34: 2500000 | I34: ANABELL VELASQUEZ | J34: COORDINADORA PIC | K34: PIC | L34: =VLOOKUP(A34:A37,'[1]PIC JULIO 2020'!$A$2:$O$40,15,0) -> 3770 | M34: =VLOOKUP(A34:A37,'[1]PIC JULIO 2020'!$A$2:$P$37,16,0) -> 4752 | N34: =VLOOKUP(A34:A37,'[2]PIC JULIO 2020'!$A$2:$Q$40,17,0) -> 2020-07-20 | O34: https://www.contratos.gov.co/consultas/detalleProceso.do?numConstancia=20-4-10938653
A35: 72304633 | B35: SAMUEL EDUARDO URUETA HURTADO | C35: 246-2020 -PIC | D35: LIDER AMBIENTAL | E35: 01 julio de 2020 | F35: 31 de Julio de 2020 | G35: 2500000 | H35: 2500000 | I35: ANABELL VELASQUEZ | J35: COORDINADORA PIC | K35: PIC | L35: =VLOOKUP(A35:A37,'[1]PIC JULIO 2020'!$A$2:$O$40,15,0) -> 3771 | M35: =VLOOKUP(A35:A37,'[1]PIC JULIO 2020'!$A$2:$P$37,16,0) -> 4753 | N35: =VLOOKUP(A35:A37,'[2]PIC JULIO 2020'!$A$2:$Q$40,17,0) -> 2020-07-20 | O35: https://www.contratos.gov.co/consultas/detalleProceso.do?numConstancia=20-4-10938654
A36: 1129542324 | B36: VANESSA ESTHER TEVENIN VERGARA | C36: 247-2020-PIC | D36: AUXILIAR DE ENFERMERIA - VACUNACION | E36: 21 DE JULIO DE 2020 | F36: 31 de Julio de 2020 | G36: =1400000/30*11 -> 513333.3333 | H36: 513333.3333 | I36: ANABELL VELASQUEZ | J36: COORDINADORA PIC | K36: PIC | L36: 3802 | N36: 24-07-2020 | O36: https://www.contratos.gov.co/consultas/detalleProceso.do?numConstancia=20-4-10952110
A37: 50846336 | B37: MIRIAM DEL SOCORRO FLOREZ ESPITIA | C37: 248-2020-PIC | D37: AUXILIAR DE ENFERMERIA - VACUNACION | E37: 21 DE JULIO DE 2020 | F37: 31 de Julio de 2020 | G37: =1400000/30*11 -> 513333.3333 | H37: 513333.3333 | I37: ANABELL VELASQUEZ | J37: COORDINADORA PIC | K37: PIC | L37: 3803 | N37: 24-07-2020 | O37: https://www.contratos.gov.co/consultas/detalleProceso.do?numConstancia=20-4-10952127
